Workbook

Sheet cooperators-41
A1: cooperator number | B1: gender | C1: name | D1: firstname | E1: other name | F1: birthday | G1: birhtday place | H1: type | I1: company name | J1: vat | K1: language | L1: street | M1: postal code | N1: city | O1: country | P1: fiscal country | Q1: nationality | R1: mobile | S1: phone | T1: email | U1: bank account name | V1: iban | W1: bic | X1: Concatainer | Y1: Donateur | Z1: 2019 | AA1: 2019 brut | AB1: 2019 net | AC1: 2020 | AD1: 2020 brut | AE1: 2020 net | AF1: 2022 | AG1: 2022 brut | AH1: 2022 net | AI1: total net
A2: ICEA-346 | B2: woman | C2: Albarede | D2: Carine | F2: 1978-07-11 | G2: Lavaur | H2: person | K2: fr | L2: 11 rue des églantines | M2: 31320 | N2: Castanet Tolosan | O2: FR | P2: FR | Q2: FR | R2: 06 63 24 02 19 | T2: carine_al@yahoo.fr | X2: =CONCATENATE(C2," ",D2) -> Albarede Carine | AA2: =Z2*2% -> 0 | AB2: =AA2-AA2*30% -> 0 | AC2: 100 | AD2: =AC2*2% -> 2 | AE2: =AD2-AD2*30% -> 1.4 | AF2: 100 | AG2: =AF2*1.57% -> 1.57 | AH2: =AG2-AG2*30% -> 1.099
A3: ICEA-292 | B3: man | C3: Alberola | D3: Jean-Marc | E3: . | F3: 1961-12-26 | G3: Carcassonne | H3: person | K3: fr | L3: 18 rue des Pyrénées | M3: 31670 | N3: Labège | O3: FR | P3: FR | Q3: FR | R3: +3313 97 30 03 | T3: jmarc.alberola@gmail.com | U3: M ALBEROLA JEAN MARC | V3: FR7612280000030424950123701 | W3: SORMFR2NXXX | X3: =CONCATENATE(C3," ",D3) -> Alberola Jean-Marc | AA3: =Z3*2% -> 0 | AB3: =AA3-AA3*30% -> 0 | AC3: 500 | AD3: =AC3*2% -> 10 | AE3: =AD3-AD3*30% -> 7 | AF3: 500 | AG3: =AF3*1.57% -> 7.85 | AH3: =AG3-AG3*30% -> 5.495 | AI3: =AB3+AE3+AH3 -> 12.495 | AJ3: =CONCATENATE("2019/",'cooperators-41'!AB3,"Euros-2020/",'cooperators-41'!AE3,"Euros-2022/",'cooperators-41'!AH3,"Euros") -> 2019/0Euros-2020/7Euros-2022/5,495Euros
A4: ICEA-400 | B4: woman | C4: Arnould | D4: Rachel | F4: 1975-01-23 | G4: Courbevoie | H4: person | K4: fr | L4: 4 allée des tamaris | M4: 31520 | N4: Ramonville St Agne | O4: FR | P4: FR | Q4: FR | R4: 664272484 | T4: arnould.rachel@gmail.com | X4: =CONCATENATE(C4," ",D4) -> Arnould Rachel | AA4: =Z4*2% -> 0 | AB4: =AA4-AA4*30% -> 0 | AD4: =AC4*2% -> 0 | AE4: =AD4-AD4*30% -> 0 | AF4: 50 | AG4: =AF4*1.57% -> 0.785 | AH4: =AG4-AG4*30% -> 0.5495
A5: ICEA-333 | B5: woman | C5: Aubert | D5: Marion | E5: Houles | F5: 1982-03-21 | G5: Frejus | H5: person | K5: fr | L5: 2 imp du Midi | M5: 31450 | N5: Ayguesvives | O5: FR | P5: FR | Q5: FR | R5: 06 64 30 34 04 | T5: aubert.m@laposte.net | X5: =CONCATENATE(C5," ",D5) -> Aubert Marion | AA5: =Z5*2% -> 0 | AB5: =AA5-AA5*30% -> 0 | AC5: 200 | AD5: =AC5*2% -> 4 | AE5: =AD5-AD5*30% -> 2.8 | AF5: 200 | AG5: =AF5*1.57% -> 3.14 | AH5: =AG5-AG5*30% -> 2.198
A6: ICEA-274 | B6: man | C6: Aublanc | D6: Jérémie | F6: 1983-11-21 | G6: Nancy | H6: person | K6: fr | L6: 8 avenue du Vallon | M6: 31750 | N6: Escalquens | O6: FR | P6: FR | Q6: FR | R6: 06 37 16 82 47 | T6: jeremie.aublanc@yahoo.fr | X6: =CONCATENATE(C6," ",D6) -> Aublanc Jérémie | AA6: =Z6*2% -> 0 | AB6: =AA6-AA6*30% -> 0 | AC6: 500 | AD6: =AC6*2% -> 10 | AE6: =AD6-AD6*30% -> 7 | AF6: 500 | AG6: =AF6*1.57% -> 7.85 | AH6: =AG6-AG6*30% -> 5.495
A7: ICEA-198 | B7: woman | C7: AVRAMIDES | D7: Elodie | E7: . | F7: 1982-08-20 | G7: Edessa (Grèce -99) | H7: person | K7: fr | L7: 15 rue des Remparts | M7: 31450 | N7: Montgiscard | O7: FR | P7: FR | Q7: FR | R7: 06 64 10 96 90 | T7: elodie32@yahoo.com | X7: =CONCATENATE(C7," ",D7) -> AVRAMIDES Elodie | Z7: 500 | AA7: =Z7*2% -> 10 | AB7: =AA7-AA7*30% -> 7 | AC7: 500 | AD7: =AC7*2% -> 10 | AE7: =AD7-AD7*30% -> 7 | AF7: 500 | AG7: =AF7*1.57% -> 7.85 | AH7: =AG7-AG7*30% -> 5.495
A8: ICEA-108 | B8: woman | C8: AYMARD | D8: Laure | E8: Laure | F8: 1976-09-27 | G8: Ales | H8: person | K8: fr | L8: 53 Boulevard de la Villette | M8: 75010 | N8: Paris | O8: FR | P8: FR | Q8: FR | R8: +3320 13 76 95 | S8: 333362013769 | T8: laure_aymard@yahoo.fr | X8: =CONCATENATE(C8," ",D8) -> AYMARD Laure | Z8: 150 | AA8: =Z8*2% -> 3 | AB8: =AA8-AA8*30% -> 2.1 | AC8: 150 | AD8: =AC8*2% -> 3 | AE8: =AD8-AD8*30% -> 2.1 | AF8: 150 | AG8: =AF8*1.57% -> 2.355 | AH8: =AG8-AG8*30% -> 1.6485
A9: ICEA-414 | B9: man | C9: BAGNERIS | D9: Bernard | F9: 1959-11-18 | G9: Rieumes | H9: person | K9: fr | L9: 0 Impasse du Barry | M9: 31320 | N9: Castanet | O9: FR | P9: FR | Q9: FR | R9: 33673635731 | S9: 33561278985 | T9: bernard.bagneris@laposte.net | V9: NULL | X9: =CONCATENATE(C9," ",D9) -> BAGNERIS Bernard | AA9: =Z9*2% -> 0 | AB9: =AA9-AA9*30% -> 0 | AD9: =AC9*2% -> 0 | AE9: =AD9-AD9*30% -> 0 | AF9: 50 | AG9: =AF9*1.57% -> 0.785 | AH9: =AG9-AG9*30% -> 0.5495
A10: ICEA-129 | B10: man | C10: BALOSSO | D10: Olivier | F10: 1986-06-04 | G10: Clermont Ferrand | H10: person | K10: fr | L10: 33 TER RUE VESTREPAIN BAT B4 | M10: 31100 | N10: TOULOUSE | O10: FR | P10: FR | Q10: FR | R10: 33628010079 | T10: balosso.olivier@gmail.com | U10: Olivier BALOSSO | V10: FR7642559100000401878365756 | W10: CCOPFRPPXXX | X10: =CONCATENATE(C10," ",D10) -> BALOSSO Olivier | Z10: 500 | AA10: =Z10*2% -> 10 | AB10: =AA10-AA10*30% -> 7 | AC10: 500 | AD10: =AC10*2% -> 10 | AE10: =AD10-AD10*30% -> 7 | AF10: 500 | AG10: =AF10*1.57% -> 7.85 | AH10: =AG10-AG10*30% -> 5.495 | AI10: =AB10+AE10+AH10 -> 19.495 | AJ10: =CONCATENATE("2019/",'cooperators-41'!AB10,"Euros-2020/",'cooperators-41'!AE10,"Euros-2022/",'cooperators-41'!AH10,"Euros") -> 2019/7Euros-2020/7Euros-2022/5,495Euros
A11: ICEA-280 | B11: woman | C11: Bandel | D11: Astride | F11: 1962-05-15 | G11: Bitche (57) | H11: person | K11: fr | L11: 295 ch du Moulin | M11: 31320 | N11: Aureville | O11: FR | P11: FR | Q11: FR | R11: 06 67 39 46 12 | T11: ababa@laposte.net | X11: =CONCATENATE(C11," ",D11) -> Bandel Astride | AA11: =Z11*2% -> 0 | AB11: =AA11-AA11*30% -> 0 | AC11: 200 | AD11: =AC11*2% -> 4 | AE11: =AD11-AD11*30% -> 2.8 | AF11: 200 | AG11: =AF11*1.57% -> 3.14 | AH11: =AG11-AG11*30% -> 2.198
A12: ICEA-210 | B12: woman | C12: Baret | D12: Céline | F12: 1971-11-27 | G12: Talence | H12: person | K12: fr | L12: Bat l'autan- Apt 201- 15 av Georges Brassens | M12: 31670 | N12: Labège | O12: FR | P12: FR | Q12: FR | R12: 06 59 45 51 74 | T12: celinebaret71@gmail.com | X12: =CONCATENATE(C12," ",D12) -> Baret Céline | Z12: 50 | AA12: =Z12*2% -> 1 | AB12: =AA12-AA12*30% -> 0.7 | AC12: 50 | AD12: =AC12*2% -> 1 | AE12: =AD12-AD12*30% -> 0.7 | AF12: 50 | AG12: =AF12*1.57% -> 0.785 | AH12: =AG12-AG12*30% -> 0.5495
A13: ICEA-266 | B13: man | C13: Barousse | D13: Adrien | F13: 1988-05-08 | G13: Toulouse | H13: person | K13: fr | L13: 1133 Route de Fourquevaux | M13: 31450 | N13: MONTLAUR | O13: FR | P13: FR | Q13: FR | R13: 06 72 50 37 01 | T13: adrien.barousse@orange.fr | X13: =CONCATENATE(C13," ",D13) -> Barousse Adrien | Z13: 50 | AA13: =Z13*2% -> 1 | AB13: =AA13-AA13*30% -> 0.7 | AC13: 50 | AD13: =AC13*2% -> 1 | AE13: =AD13-AD13*30% -> 0.7 | AF13: 50 | AG13: =AF13*1.57% -> 0.785 | AH13: =AG13-AG13*30% -> 0.5495
A14: ICEA-144 | B14: woman | C14: Barousse | D14: Annie | F14: 1957-02-12 | G14: Toulouse | H14: person | K14: fr | L14: 1133 route de Fourquevaux | M14: 31450 | N14: Montlaur | O14: FR | P14: FR | Q14: FR | R14: 06 04 18 04 54 | T14: francis.barousse@wanadoo.fr | X14: =CONCATENATE(C14," ",D14) -> Barousse Annie | Z14: 50 | AA14: =Z14*2% -> 1 | AB14: =AA14-AA14*30% -> 0.7 | AC14: 50 | AD14: =AC14*2% -> 1 | AE14: =AD14-AD14*30% -> 0.7 | AF14: 50 | AG14: =AF14*1.57% -> 0.785 | AH14: =AG14-AG14*30% -> 0.5495
A15: ICEA-267 | B15: man | C15: Barousse | D15: Aude | F15: 1986-04-16 | G15: Toulouse | H15: person | K15: fr | L15: 1133 Route de Fourquevaux | M15: 31451 | N15: MONTLAUR | O15: FR | P15: FR | Q15: FR | R15: 06 77 47 48 60 | T15: aude.barousse@gmail.com | X15: =CONCATENATE(C15," ",D15) -> Barousse Aude | Z15: 50 | AA15: =Z15*2% -> 1 | AB15: =AA15-AA15*30% -> 0.7 | AC15: 50 | AD15: =AC15*2% -> 1 | AE15: =AD15-AD15*30% -> 0.7 | AF15: 50 | AG15: =AF15*1.57% -> 0.785 | AH15: =AG15-AG15*30% -> 0.5495
A16: ICEA-132 | B16: man | C16: Barousse | D16: Francis | F16: 1957-01-20 | G16: St Gaudens | H16: person | K16: fr | L16: 1133 route de Fourquevaux | M16: 31450 | N16: Montlaur | O16: FR | P16: FR | Q16: FR | R16: 06 04 18 04 54 | T16: francis.barousse@wanadoo.fr | X16: =CONCATENATE(C16," ",D16) -> Barousse Francis | Z16: 50 | AA16: =Z16*2% -> 1 | AB16: =AA16-AA16*30% -> 0.7 | AC16: 50 | AD16: =AC16*2% -> 1 | AE16: =AD16-AD16*30% -> 0.7 | AF16: 50 | AG16: =AF16*1.57% -> 0.785 | AH16: =AG16-AG16*30% -> 0.5495
A17: ICEA-185 | B17: man | C17: BAROUSSE | D17: JULIEN | E17: . | F17: 1984-12-13 | G17: TOULOUSE | H17: person | K17: fr | L17: 1133 rte de fourquevaux | M17: 31450 | N17: MONTLAUR | O17: FR | P17: FR | Q17: FR | R17: 06 48 30 32 51 | T17: julien.barousse@gmail.com | X17: =CONCATENATE(C17," ",D17) -> BAROUSSE JULIEN | Z17: 50 | AA17: =Z17*2% -> 1 | AB17: =AA17-AA17*30% -> 0.7 | AC17: 50 | AD17: =AC17*2% -> 1 | AE17: =AD17-AD17*30% -> 0.7 | AF17: 50 | AG17: =AF17*1.57% -> 0.785 | AH17: =AG17-AG17*30% -> 0.5495
A18: ICEA-157 | B18: woman | C18: Barrau | D18: Marie-Régine | F18: 1961-12-26 | G18: Valence(82) | H18: person | K18: fr | L18: Avenue S Allende- Les ormes2 BatF2 Apt 39 | M18: 31320 | N18: Castanet Tolosan | O18: FR | P18: FR | Q18: FR | R18: 06 84 82 39 85 | T18: mrbarrau@sfr.fr | X18: =CONCATENATE(C18," ",D18) -> Barrau Marie-Régine | Z18: 100 | AA18: =Z18*2% -> 2 | AB18: =AA18-AA18*30% -> 1.4 | AC18: 100 | AD18: =AC18*2% -> 2 | AE18: =AD18-AD18*30% -> 1.4 | AF18: 100 | AG18: =AF18*1.57% -> 1.57 | AH18: =AG18-AG18*30% -> 1.099
A19: ICEA-317 | B19: man | C19: BASCOUL | D19: Guillaume | E19: . | F19: 1987-02-02 | G19: Limoges | H19: person | K19: fr | L19: 56 Chemin d'en roques | M19: 31450 | N19: Ayguesvives | O19: FR | P19: FR | Q19: FR | R19: +336 82 46 11 47 | T19: gbascoul@gmail.com | U19: BASCOUL Guillaume | V19: FR7614518292670193788774016 | W19: FTNOFRP1XXX | X19: =CONCATENATE(C19," ",D19) -> BASCOUL Guillaume | AA19: =Z19*2% -> 0 | AB19: =AA19-AA19*30% -> 0 | AC19: 500 | AD19: =AC19*2% -> 10 | AE19: =AD19-AD19*30% -> 7 | AF19: 500 | AG19: =AF19*1.57% -> 7.85 | AH19: =AG19-AG19*30% -> 5.495 | AI19: =AB19+AE19+AH19 -> 12.495 | AJ19: =CONCATENATE("2019/",'cooperators-41'!AB19,"Euros-2020/",'cooperators-41'!AE19,"Euros-2022/",'cooperators-41'!AH19,"Euros") -> 2019/0Euros-2020/7Euros-2022/5,495Euros
A20: ICEA-394 | B20: woman | C20: BASCOUL | D20: Noémie | F20: 2018-09-08 | G20: Toulouse | H20: gardian | K20: fr | L20: 56 Chemin d'en roques | M20: 31450 | N20: Ayguesvives | O20: FR | P20: FR | Q20: FR | R20: 33682461147 | T20: gbascoul@gmail.com | U20: BASCOUL NOEMIE | V20: FR7614518292670782694284041 | W20: FTNOFRP1XXX | X20: =CONCATENATE(C20," ",D20) -> BASCOUL Noémie | AA20: =Z20*2% -> 0 | AB20: =AA20-AA20*30% -> 0 | AD20: =AC20*2% -> 0 | AE20: =AD20-AD20*30% -> 0 | AF20: 500 | AG20: =AF20*1.57% -> 7.85 | AH20: =AG20-AG20*30% -> 5.495 | AI20: =AB20+AE20+AH20 -> 5.495 | AJ20: =CONCATENATE("2019/",'cooperators-41'!AB20,"Euros-2020/",'cooperators-41'!AE20,"Euros-2022/",'cooperators-41'!AH20,"Euros") -> 2019/0Euros-2020/0Euros-2022/5,495Euros
A21: ICEA-336 | B21: woman | C21: BASCOUL | D21: OLIVIA | E21: . | F21: 2016-09-15 | G21: TOULOUSE | H21: gardian | K21: fr | L21: 56 Chemin d'en roques | M21: 31450 | N21: Ayguesvives | O21: FR | P21: FR | Q21: FR | T21: gbascoul@gmail.com | U21: BASCOUL OLIVIA | V21: FR7614518292670224166874049 | W21: FTNOFRP1XXX | X21: =CONCATENATE(C21," ",D21) -> BASCOUL OLIVIA | AA21: =Z21*2% -> 0 | AB21: =AA21-AA21*30% -> 0 | AC21: 500 | AD21: =AC21*2% -> 10 | AE21: =AD21-AD21*30% -> 7 | AF21: 500 | AG21: =AF21*1.57% -> 7.85 | AH21: =AG21-AG21*30% -> 5.495 | AI21: =AB21+AE21+AH21 -> 12.495 | AJ21: =CONCATENATE("2019/",'cooperators-41'!AB21,"Euros-2020/",'cooperators-41'!AE21,"Euros-2022/",'cooperators-41'!AH21,"Euros") -> 2019/0Euros-2020/7Euros-2022/5,495Euros
A22: ICEA-124 | B22: woman | C22: BENTO | D22: Aida | E22: Boulanger | F22: 1951-06-01 | G22: Portugal | H22: person | K22: fr | L22: 20 rue du vivier | M22: 31650 | N22: St Orens de Gameville | O22: FR | P22: FR | Q22: FR | R22: +336 41 47 43 | T22: h.boulanger31@orange.fr | U22: BOULANGER HERVE OU AIDA | V22: FR7613106005001820821510135 | W22: AGRIFRPP831 | X22: =CONCATENATE(C22," ",D22) -> BENTO Aida | Z22: 600 | AA22: =Z22*2% -> 12 | AB22: =AA22-AA22*30% -> 8.4 | AC22: 600 | AD22: =AC22*2% -> 12 | AE22: =AD22-AD22*30% -> 8.4 | AF22: 600 | AG22: =AF22*1.57% -> 9.42 | AH22: =AG22-AG22*30% -> 6.594 | AI22: =AB22+AE22+AH22 -> 23.394 | AJ22: =CONCATENATE("2019/",'cooperators-41'!AB22,"Euros-2020/",'cooperators-41'!AE22,"Euros-2022/",'cooperators-41'!AH22,"Euros") -> 2019/8,4Euros-2020/8,4Euros-2022/6,594Euros
A23: ICEA-301 | B23: woman | C23: BERNARD | D23: NELLY | E23: .BLAES | F23: 1953-05-18 | G23: LYON | H23: person | K23: fr | L23: 12 ALLÉE DE QUEYRATZ | M23: 31320 | N23: Auzeville Tolosane | O23: FR | P23: FR | Q23: FR | R23: 06 72 52 31 25 | T23: n.blaes@laposte.net | X23: =CONCATENATE(C23," ",D23) -> BERNARD NELLY | AA23: =Z23*2% -> 0 | AB23: =AA23-AA23*30% -> 0 | AC23: 500 | AD23: =AC23*2% -> 10 | AE23: =AD23-AD23*30% -> 7 | AF23: 500 | AG23: =AF23*1.57% -> 7.85 | AH23: =AG23-AG23*30% -> 5.495
A24: ICEA-42 | B24: woman | C24: Bernard | D24: Pascale | F24: 1964-09-02 | G24: Narbonne(11) | H24: person | K24: fr | L24: 18 RUE DES PYRENEES | M24: 31670 | N24: Labège | O24: FR | P24: FR | Q24: FR | R24: +3361 39 85 02 | S24: 33682232693 | T24: pa.bernard31@gmail.com | U24: BERNARD PASCALE | V24: FR7610278022920002000730171 | W24: CMCCIFR2A | X24: =CONCATENATE(C24," ",D24) -> Bernard Pascale | Z24: 500 | AA24: =Z24*2% -> 10 | AB24: =AA24-AA24*30% -> 7 | AC24: 500 | AD24: =AC24*2% -> 10 | AE24: =AD24-AD24*30% -> 7 | AF24: 500 | AG24: =AF24*1.57% -> 7.85 | AH24: =AG24-AG24*30% -> 5.495 | AI24: =AB24+AE24+AH24 -> 19.495 | AJ24: =CONCATENATE("2019/",'cooperators-41'!AB24,"Euros-2020/",'cooperators-41'!AE24,"Euros-2022/",'cooperators-41'!AH24,"Euros") -> 2019/7Euros-2020/7Euros-2022/5,495Euros
A25: ICEA-407 | B25: woman | C25: besse | D25: nicole | F25: 1957-10-02 | G25: Uzès | H25: person | K25: fr | L25: 1200 chemin des cassagnous | M25: 31870 | N25: Lagardelle sur Lèze | O25: FR | P25: FR | Q25: FR | R25: +337 68 28 84 63 | S25: +335 62 23 40 84 | T25: besse.lauret@free.fr | V25: NULL | X25: =CONCATENATE(C25," ",D25) -> besse nicole | AA25: =Z25*2% -> 0 | AB25: =AA25-AA25*30% -> 0 | AD25: =AC25*2% -> 0 | AE25: =AD25-AD25*30% -> 0 | AF25: 3000 | AG25: =AF25*1.57% -> 47.1 | AH25: =AG25-AG25*30% -> 32.97
A26: ICEA-200 | B26: woman | C26: Billard | D26: Bernadette | E26: Messent | F26: 1947-09-23 | G26: Chalon/saone | H26: person | K26: fr | L26: 7 ch du paradis | M26: 31450 | N26: Belberaud | O26: FR | P26: FR | Q26: FR | R26: 05 61 83 44 55 | T26: bernadette.messent@orange.fr | X26: =CONCATENATE(C26," ",D26) -> Billard Bernadette | Z26: 50 | AA26: =Z26*2% -> 1 | AB26: =AA26-AA26*30% -> 0.7 | AC26: 50 | AD26: =AC26*2% -> 1 | AE26: =AD26-AD26*30% -> 0.7 | AF26: 50 | AG26: =AF26*1.57% -> 0.785 | AH26: =AG26-AG26*30% -> 0.5495
A27: ICEA-344 | B27: man | C27: Bioulez | D27: Eugène | F27: 1941-07-14 | G27: Toulouse | H27: person | K27: fr | L27: 7 rue des ménéstrels | M27: 31670 | N27: Labège | O27: FR | P27: FR | Q27: FR | R27: 05 62 24 44 85 | T27: bioulez.p@gmail.com | X27: =CONCATENATE(C27," ",D27) -> Bioulez Eugène | AA27: =Z27*2% -> 0 | AB27: =AA27-AA27*30% -> 0 | AC27: 50 | AD27: =AC27*2% -> 1 | AE27: =AD27-AD27*30% -> 0.7 | AF27: 50 | AG27: =AF27*1.57% -> 0.785 | AH27: =AG27-AG27*30% -> 0.5495
A28: ICEA-393 | B28: man | C28: Blanchot | D28: Dominique | E28: Claude Michel | F28: 1955-11-12 | G28: Saint Maur des Fossés | H28: person | K28: fr | L28: 540 Route de l'Aouach | M28: 31870 | N28: Beaumont sur Leze | O28: FR | P28: FR | Q28: FR | R28: 33677769843 | S28: 33561082820 | T28: dblanchot@wanadoo.fr | U28: M ou Mme Dominique Blanchot | V28: FR7613106005002000068418519 | W28: AGRIFRPP831 | X28: =CONCATENATE(C28," ",D28) -> Blanchot Dominique | AA28: =Z28*2% -> 0 | AB28: =AA28-AA28*30% -> 0 | AD28: =AC28*2% -> 0 | AE28: =AD28-AD28*30% -> 0 | AF28: 100 | AG28: =AF28*1.57% -> 1.57 | AH28: =AG28-AG28*30% -> 1.099 | AI28: =AB28+AE28+AH28 -> 1.099 | AJ28: =CONCATENATE("2019/",'cooperators-41'!AB28,"Euros-2020/",'cooperators-41'!AE28,"Euros-2022/",'cooperators-41'!AH28,"Euros") -> 2019/0Euros-2020/0Euros-2022/1,099Euros
A29: ICEA-61 | B29: man | C29: Bolet | D29: Gérard | F29: 1953-03-19 | G29: Paris 13eme | H29: person | K29: fr | L29: 1051 Ch de la Ginestière | M29: 31450 | N29: Montbrun-Lauragais | O29: FR | P29: FR | Q29: FR | R29: 06 08 26 42 83 | T29: gerard.bolet@gmail.com | X29: =CONCATENATE(C29," ",D29) -> Bolet Gérard | Z29: 500 | AA29: =Z29*2% -> 10 | AB29: =AA29-AA29*30% -> 7 | AC29: 500 | AD29: =AC29*2% -> 10 | AE29: =AD29-AD29*30% -> 7 | AF29: 500 | AG29: =AF29*1.57% -> 7.85 | AH29: =AG29-AG29*30% -> 5.495
A30: ICEA-405 | B30: man | C30: bouillot | D30: vincent | F30: 1979-07-21 | G30: amiens | H30: person | K30: fr | L30: 28 avenue des pyrénées | M30: 31810 | N30: VENERQUE | O30: FR | P30: FR | Q30: FR | R30: 33645613607 | T30: vbouillot@gmail.com | V30: NULL | X30: =CONCATENATE(C30," ",D30) -> bouillot vincent | AA30: =Z30*2% -> 0 | AB30: =AA30-AA30*30% -> 0 | AD30: =AC30*2% -> 0 | AE30: =AD30-AD30*30% -> 0 | AF30: 250 | AG30: =AF30*1.57% -> 3.925 | AH30: =AG30-AG30*30% -> 2.7475
A31: ICEA-125 | B31: man | C31: Boulanger | D31: Hervé | E31: Jean | F31: 1951-08-18 | G31: Laon | H31: person | K31: fr | L31: 20 rue du vivier | M31: 31650 | N31: St Orens de Gameville | O31: FR | P31: FR | Q31: FR | R31: +336 41 47 43 | T31: h.boulanger31@orange.fr | U31: BOULANGER HERVE OU AIDA | V31: FR7613106005001820821510135 | W31: AGRIFRPP831 | X31: =CONCATENATE(C31," ",D31) -> Boulanger Hervé | Z31: 600 | AA31: =Z31*2% -> 12 | AB31: =AA31-AA31*30% -> 8.4 | AC31: 600 | AD31: =AC31*2% -> 12 | AE31: =AD31-AD31*30% -> 8.4 | AF31: 600 | AG31: =AF31*1.57% -> 9.42 | AH31: =AG31-AG31*30% -> 6.594 | AI31: =AB31+AE31+AH31 -> 23.394 | AJ31: =CONCATENATE("2019/",'cooperators-41'!AB31,"Euros-2020/",'cooperators-41'!AE31,"Euros-2022/",'cooperators-41'!AH31,"Euros") -> 2019/8,4Euros-2020/8,4Euros-2022/6,594Euros
A32: ICEA-193 | B32: man | C32: BOULDOIRES | D32: JEREMY | E32: . | F32: 2015-06-21 | G32: PARIS | H32: gardian | K32: fr | L32: 7 Route de Villeneuve | M32: 91580 | N32: AUVERS | O32: FR | P32: FR | Q32: FR | T32: bouldoires1@gmail.com | X32: =CONCATENATE(C32," ",D32) -> BOULDOIRES JEREMY | Z32: 200 | AA32: =Z32*2% -> 4 | AB32: =AA32-AA32*30% -> 2.8 | AC32: 200 | AD32: =AC32*2% -> 4 | AE32: =AD32-AD32*30% -> 2.8 | AF32: 500 | AG32: =AF32*1.57% -> 7.85 | AH32: =AG32-AG32*30% -> 5.495
A33: ICEA-321 | B33: woman | C33: Bouquet | D33: Fabienne | E33: Wautelet | F33: 1979-08-01 | G33: Ruffec (16) | H33: person | K33: fr | L33: 39 J chemin de Lasserre | M33: 31450 | N33: Corronsac | O33: FR | P33: FR | Q33: FR | R33: +336 77 12 15 29 | T33: fabienne.wautelet@fractalzone.fr | U33: Fabienne Wautelet | V33: FR7610278022120002064010194 | W33: CMCIFR2A | X33: =CONCATENATE(C33," ",D33) -> Bouquet Fabienne | AA33: =Z33*2% -> 0 | AB33: =AA33-AA33*30% -> 0 | AC33: 100 | AD33: =AC33*2% -> 2 | AE33: =AD33-AD33*30% -> 1.4 | AF33: 100 | AG33: =AF33*1.57% -> 1.57 | AH33: =AG33-AG33*30% -> 1.099 | AI33: =AB33+AE33+AH33 -> 2.499 | AJ33: =CONCATENATE("2019/",'cooperators-41'!AB33,"Euros-2020/",'cooperators-41'!AE33,"Euros-2022/",'cooperators-41'!AH33,"Euros") -> 2019/0Euros-2020/1,4Euros-2022/1,099Euros
A34: ICEA-178 | B34: man | C34: BOUTONNET | D34: Félix | F34: 2009-05-16 | G34: PARIS 12 | H34: gardian | K34: fr | L34: 6 TER Allée Chantecaille | M34: 31670 | N34: LABEGE | O34: FR | P34: FR | Q34: FR | R34: 06 29 15 65 75 | T34: laurence.duguy@laposte.net | X34: =CONCATENATE(C34," ",D34) -> BOUTONNET Félix | Z34: 50 | AA34: =Z34*2% -> 1 | AB34: =AA34-AA34*30% -> 0.7 | AC34: 50 | AD34: =AC34*2% -> 1 | AE34: =AD34-AD34*30% -> 0.7 | AF34: 50 | AG34: =AF34*1.57% -> 0.785 | AH34: =AG34-AG34*30% -> 0.5495
A35: ICEA-177 | B35: man | C35: BOUTONNET | D35: Justin | F35: 2005-11-29 | G35: PARIS 12 | H35: gardian | K35: fr | L35: 6 TER Allée Chantecaille | M35: 31670 | N35: LABEGE | O35: FR | P35: FR | Q35: FR | R35: 06 29 15 65 75 | T35: laurence.duguy@laposte.net | X35: =CONCATENATE(C35," ",D35) -> BOUTONNET Justin | Z35: 50 | AA35: =Z35*2% -> 1 | AB35: =AA35-AA35*30% -> 0.7 | AC35: 50 | AD35: =AC35*2% -> 1 | AE35: =AD35-AD35*30% -> 0.7 | AF35: 50 | AG35: =AF35*1.57% -> 0.785 | AH35: =AG35-AG35*30% -> 0.5495
A36: ICEA-51 | B36: woman | C36: Boyer | D36: Florence | E36: Galinier | F36: 1960-08-22 | G36: Mazamet (81) | H36: person | K36: fr | L36: 9 ch de la fontaine St Sernin | M36: 31670 | N36: Labège | O36: FR | P36: FR | Q36: FR | R36: 06 07 41 31 47 | T36: migali@club-internet.fr | X36: =CONCATENATE(C36," ",D36) -> Boyer Florence | Z36: 500 | AA36: =Z36*2% -> 10 | AB36: =AA36-AA36*30% -> 7 | AC36: 500 | AD36: =AC36*2% -> 10 | AE36: =AD36-AD36*30% -> 7 | AF36: 500 | AG36: =AF36*1.57% -> 7.85 | AH36: =AG36-AG36*30% -> 5.495
A37: ICEA-140 | B37: man | C37: BRAAK | D37: le maire Laurent | E37: Laurent | F37: 2018-06-01 | H37: company | I37: Commune de Montbrun | K37: fr | L37: 2 pl R Hebard | M37: 31450 | N37: Montbrun-Lauragais | O37: FR | P37: FR | Q37: FR | T37: mairie@montbrun-lauragais.fr | X37: =CONCATENATE(C37," ",D37) -> BRAAK le maire Laurent | Z37: 250 | AA37: =Z37*2% -> 5 | AB37: =AA37-AA37*30% -> 3.5 | AC37: 250 | AD37: =AC37*2% -> 5 | AE37: =AD37-AD37*30% -> 3.5 | AF37: 250 | AG37: =AF37*1.57% -> 3.925 | AH37: =AG37-AG37*30% -> 2.7475
A38: ICEA-402 | B38: woman | C38: BRACKENIER | D38: Marion | F38: 1992-11-06 | G38: Paris | H38: person | K38: fr | L38: 31 rue des Gironis -1ET Ap58 Parc Capitouls Bat C | M38: 31100 | N38: Toulouse | O38: FR | P38: FR | Q38: FR | R38: 33780512616 | T38: specialtune@hotmail.fr | U38: Brackenier | V38: FR4420041010161210368J03712 | W38: PSSTFRPPTOU | X38: =CONCATENATE(C38," ",D38) -> BRACKENIER Marion | AA38: =Z38*2% -> 0 | AB38: =AA38-AA38*30% -> 0 | AD38: =AC38*2% -> 0 | AE38: =AD38-AD38*30% -> 0 | AF38: 50 | AG38: =AF38*1.57% -> 0.785 | AH38: =AG38-AG38*30% -> 0.5495 | AI38: =AB38+AE38+AH38 -> 0.5495 | AJ38: =CONCATENATE("2019/",'cooperators-41'!AB38,"Euros-2020/",'cooperators-41'!AE38,"Euros-2022/",'cooperators-41'!AH38,"Euros") -> 2019/0Euros-2020/0Euros-2022/0,5495Euros
A39: ICEA-369 | B39: woman | C39: Bras | D39: Myriam | E39: Bras-Grivart | F39: 1964-10-12 | G39: Toulouse | H39: person | K39: fr | L39: 13 chemin de la bosse | M39: 31450 | N39: Ayguesvives | O39: FR | P39: FR | Q39: FR | R39: 06 99 99 15 19 | T39: myriam.bras.grivart@gmail.com | X39: =CONCATENATE(C39," ",D39) -> Bras Myriam | AA39: =Z39*2% -> 0 | AB39: =AA39-AA39*30% -> 0 | AC39: 500 | AD39: =AC39*2% -> 10 | AE39: =AD39-AD39*30% -> 7 | AF39: 500 | AG39: =AF39*1.57% -> 7.85 | AH39: =AG39-AG39*30% -> 5.495
A40: ICEA-420 | B40: man | C40: Bridonneau | D40: Philippe | F40: 1959-08-03 | G40: Paris 17 eme | H40: person | K40: fr | L40: 5 chemin de Fournier bas | M40: 31320 | N40: Rebigue | O40: FR | P40: FR | Q40: FR | R40: 06 32 35 92 27 | T40: philippe.bridonneau@orange.fr | X40: =CONCATENATE(C40," ",D40) -> Bridonneau Philippe | AA40: =Z40*2% -> 0 | AB40: =AA40-AA40*30% -> 0 | AD40: =AC40*2% -> 0 | AE40: =AD40-AD40*30% -> 0 | AF40: 50 | AG40: =AF40*1.57% -> 0.785 | AH40: =AG40-AG40*30% -> 0.5495
A41: ICEA-365 | B41: woman | C41: Brioude | D41: Sandrine | E41: Valette | F41: 1963-12-17 | G41: Aubenas | H41: person | K41: fr | L41: 4 impasse soupetard | M41: 31670 | N41: Labege | O41: FR | P41: FR | Q41: FR | R41: 06 58 57 53 48 | T41: Jjvalette@gmail.com | X41: =CONCATENATE(C41," ",D41) -> Brioude Sandrine | AA41: =Z41*2% -> 0 | AB41: =AA41-AA41*30% -> 0 | AC41: 500 | AD41: =AC41*2% -> 10 | AE41: =AD41-AD41*30% -> 7 | AF41: 500 | AG41: =AF41*1.57% -> 7.85 | AH41: =AG41-AG41*30% -> 5.495
A42: ICEA-282 | B42: man | C42: Brun | D42: François | E42: . | F42: 1979-05-25 | G42: Sarreguemines | H42: person | K42: fr | L42: 24 allee des PLATANES | M42: 31320 | N42: PECHABOU | O42: FR | P42: FR | Q42: FR | R42: 06 25 78 29 94 | T42: francoisbrun31@gmail.com | X42: =CONCATENATE(C42," ",D42) -> Brun François | AA42: =Z42*2% -> 0 | AB42: =AA42-AA42*30% -> 0 | AC42: 250 | AD42: =AC42*2% -> 5 | AE42: =AD42-AD42*30% -> 3.5 | AF42: 250 | AG42: =AF42*1.57% -> 3.925 | AH42: =AG42-AG42*30% -> 2.7475
A43: ICEA-345 | B43: man | C43: Bruyant | D43: Nicolas | E43: . | F43: 1982-05-29 | G43: Chambery | H43: person | K43: fr | L43: 24 rue des géraniums | M43: 31400 | N43: Toulouse | O43: FR | P43: FR | Q43: FR | R43: +3362 28 42 47 | T43: bruyant.nicolas@gmail.com | U43: Bruyant | V43: FR7642559100000412743153978 | W43: CCOPFRPPXXX | X43: =CONCATENATE(C43," ",D43) -> Bruyant Nicolas | AA43: =Z43*2% -> 0 | AB43: =AA43-AA43*30% -> 0 | AC43: 500 | AD43: =AC43*2% -> 10 | AE43: =AD43-AD43*30% -> 7 | AF43: 500 | AG43: =AF43*1.57% -> 7.85 | AH43: =AG43-AG43*30% -> 5.495 | AI43: =AB43+AE43+AH43 -> 12.495 | AJ43: =CONCATENATE("2019/",'cooperators-41'!AB43,"Euros-2020/",'cooperators-41'!AE43,"Euros-2022/",'cooperators-41'!AH43,"Euros") -> 2019/0Euros-2020/7Euros-2022/5,495Euros
A44: ICEA-278 | B44: man | C44: BUISSON | D44: Francois | E44: . | F44: 1957-09-27 | G44: Montereau (France) | H44: person | K44: fr | L44: 16 Avenue de Gameville | M44: 31650 | N44: SaintOrens | O44: FR | P44: FR | Q44: FR | R44: +3370 03 45 44 | T44: francois.buisson3@orange.fr | U44: Buisson Francois | V44: FR7630003020690005219043729 | W44: SOGEFRPP | X44: =CONCATENATE(C44," ",D44) -> BUISSON Francois | AA44: =Z44*2% -> 0 | AB44: =AA44-AA44*30% -> 0 | AC44: 500 | AD44: =AC44*2% -> 10 | AE44: =AD44-AD44*30% -> 7 | AF44: 500 | AG44: =AF44*1.57% -> 7.85 | AH44: =AG44-AG44*30% -> 5.495 | AI44: =AB44+AE44+AH44 -> 12.495 | AJ44: =CONCATENATE("2019/",'cooperators-41'!AB44,"Euros-2020/",'cooperators-41'!AE44,"Euros-2022/",'cooperators-41'!AH44,"Euros") -> 2019/0Euros-2020/7Euros-2022/5,495Euros
A45: ICEA-152 | B45: woman | C45: CAILLE--DUMONT | D45: ANGELE | F45: 2011-09-23 | G45: TOULOUSE | H45: gardian | K45: fr | L45: 2044 route du lac, Roquefoulet | M45: 31560 | N45: MONTGEARD | O45: FR | P45: FR | Q45: FR | R45: 06 86 90 85 41 | T45: caillejerome@yahoo.fr | X45: =CONCATENATE(C45," ",D45) -> CAILLE--DUMONT ANGELE | Z45: 50 | AA45: =Z45*2% -> 1 | AB45: =AA45-AA45*30% -> 0.7 | AC45: 50 | AD45: =AC45*2% -> 1 | AE45: =AD45-AD45*30% -> 0.7 | AF45: 50 | AG45: =AF45*1.57% -> 0.785 | AH45: =AG45-AG45*30% -> 0.5495
A46: ICEA-153 | B46: man | C46: CAILLE--DUMONT | D46: LIAM | F46: 2008-06-08 | G46: TOULOUSE | H46: gardian | K46: fr | L46: 2044 route du lac, Roquefoulet | M46: 31560 | N46: MONTGEARD | O46: FR | P46: FR | Q46: FR | R46: 06 86 90 85 41 | T46: caillejerome@yahoo.fr | X46: =CONCATENATE(C46," ",D46) -> CAILLE--DUMONT LIAM | Z46: 50 | AA46: =Z46*2% -> 1 | AB46: =AA46-AA46*30% -> 0.7 | AC46: 50 | AD46: =AC46*2% -> 1 | AE46: =AD46-AD46*30% -> 0.7 | AF46: 50 | AG46: =AF46*1.57% -> 0.785 | AH46: =AG46-AG46*30% -> 0.5495
A47: ICEA-33 | B47: man | C47: Carbonne | D47: Francis | F47: 1963-07-07 | G47: Toulouse (31) | H47: person | K47: fr | L47: 34, chemin du ruisseau de Fontbazy | M47: 31450 | N47: Donneville | O47: FR | P47: FR | Q47: FR | R47: 05 61 81 22 72 | T47: f.carbonne@orange.fr | X47: =CONCATENATE(C47," ",D47) -> Carbonne Francis | Z47: 100 | AA47: =Z47*2% -> 2 | AB47: =AA47-AA47*30% -> 1.4 | AC47: 100 | AD47: =AC47*2% -> 2 | AE47: =AD47-AD47*30% -> 1.4 | AF47: 100 | AG47: =AF47*1.57% -> 1.57 | AH47: =AG47-AG47*30% -> 1.099
A48: ICEA-167 | B48: woman | C48: CARLIER | D48: MARTINE | E48: CHARPENTEAU | F48: 1950-04-10 | G48: DIJON (21) | H48: person | K48: fr | L48: 20 rue des pinsons | M48: 31520 | N48: RAMONVILLE | O48: FR | P48: FR | Q48: FR | R48: 07 67 33 72 93 | T48: m.charpenteau@yahoo.fr | X48: =CONCATENATE(C48," ",D48) -> CARLIER MARTINE | Z48: 500 | AA48: =Z48*2% -> 10 | AB48: =AA48-AA48*30% -> 7 | AC48: 500 | AD48: =AC48*2% -> 10 | AE48: =AD48-AD48*30% -> 7 | AF48: 500 | AG48: =AF48*1.57% -> 7.85 | AH48: =AG48-AG48*30% -> 5.495
A49: ICEA-107 | B49: man | C49: Carrère | D49: Benjamin | F49: 1997-06-08 | G49: Toulouse | H49: person | K49: fr | L49: 30 boulevard d'Arcole | M49: 31000 | N49: Toulouse | O49: FR | P49: FR | Q49: FR | R49: 333942004 | T49: be.carrere@gmail.com | U49: CARRERE | V49: FR7613106005002001147673111 | W49: AGRIFRPP831 | X49: =CONCATENATE(C49," ",D49) -> Carrère Benjamin | Z49: 100 | AA49: =Z49*2% -> 2 | AB49: =AA49-AA49*30% -> 1.4 | AC49: 150 | AD49: =AC49*2% -> 3 | AE49: =AD49-AD49*30% -> 2.1 | AF49: 150 | AG49: =AF49*1.57% -> 2.355 | AH49: =AG49-AG49*30% -> 1.6485 | AI49: =AB49+AE49+AH49 -> 5.1485 | AJ49: =CONCATENATE("2019/",'cooperators-41'!AB49,"Euros-2020/",'cooperators-41'!AE49,"Euros-2022/",'cooperators-41'!AH49,"Euros") -> 2019/1,4Euros-2020/2,1Euros-2022/1,6485Euros
A50: ICEA-114 | B50: woman | C50: Carrere | D50: Pauline | F50: 1992-07-06 | G50: Toulouse | H50: person | K50: fr | L50: 710 route d'Espanes | M50: 31450 | N50: Issus | O50: FR | P50: FR | Q50: FR | R50: 06 04 51 74 29 | T50: pauline_carrere@hotmail.fr | X50: =CONCATENATE(C50," ",D50) -> Carrere Pauline | Z50: 100 | AA50: =Z50*2% -> 2 | AB50: =AA50-AA50*30% -> 1.4 | AC50: 150 | AD50: =AC50*2% -> 3 | AE50: =AD50-AD50*30% -> 2.1 | AF50: 150 | AG50: =AF50*1.57% -> 2.355 | AH50: =AG50-AG50*30% -> 1.6485
A51: ICEA-173 | B51: man | C51: Cassin | D51: Michel | F51: 1954-11-30 | G51: Agmé (47) | H51: person | K51: fr | L51: 22 av de la Bourdette | M51: 31750 | N51: Escalquens | O51: FR | P51: FR | Q51: FR | R51: 06 31 81 17 72 | T51: michel.cassin@free.fr | X51: =CONCATENATE(C51," ",D51) -> Cassin Michel | Z51: 50 | AA51: =Z51*2% -> 1 | AB51: =AA51-AA51*30% -> 0.7 | AC51: 500 | AD51: =AC51*2% -> 10 | AE51: =AD51-AD51*30% -> 7 | AF51: 500 | AG51: =AF51*1.57% -> 7.85 | AH51: =AG51-AG51*30% -> 5.495
A52: ICEA-163 | B52: man | C52: Caujolle | D52: Hervé | F52: 1972-02-20 | G52: Argenteuil | H52: person | K52: fr | L52: 37, rue d'Auriol | M52: 31400 | N52: Toulouse | O52: FR | P52: FR | Q52: FR | R52: 06 09 24 87 40 | T52: herve.caujolle@laposte.net | X52: =CONCATENATE(C52," ",D52) -> Caujolle Hervé | Z52: 50 | AA52: =Z52*2% -> 1 | AB52: =AA52-AA52*30% -> 0.7 | AC52: 50 | AD52: =AC52*2% -> 1 | AE52: =AD52-AD52*30% -> 0.7 | AF52: 50 | AG52: =AF52*1.57% -> 0.785 | AH52: =AG52-AG52*30% -> 0.5495
A53: ICEA-254 | B53: woman | C53: Cazales | D53: Sylvie | F53: 1977-09-24 | G53: Toulouse | H53: person | K53: fr | L53: 8 allée de St Paul | M53: 31670 | N53: Labège | O53: FR | P53: FR | Q53: FR | R53: 06 22 89 50 70 | T53: sylvie.cazales@gmail.com | X53: =CONCATENATE(C53," ",D53) -> Cazales Sylvie | Z53: 100 | AA53: =Z53*2% -> 2 | AB53: =AA53-AA53*30% -> 1.4 | AC53: 100 | AD53: =AC53*2% -> 2 | AE53: =AD53-AD53*30% -> 1.4 | AF53: 100 | AG53: =AF53*1.57% -> 1.57 | AH53: =AG53-AG53*30% -> 1.099
A54: ICEA-341 | B54: woman | C54: Chabot | D54: Catherine | E54: Knödlseder | F54: 1973-03-19 | G54: Auxerre | H54: person | K54: fr | L54: 7, allée des Jonquilles | M54: 31520 | N54: Ramonville | O54: FR | P54: FR | Q54: FR | R54: 06 84 65 22 77 | T54: kn.catherine@laposte.net | X54: =CONCATENATE(C54," ",D54) -> Chabot Catherine | AA54: =Z54*2% -> 0 | AB54: =AA54-AA54*30% -> 0 | AC54: 500 | AD54: =AC54*2% -> 10 | AE54: =AD54-AD54*30% -> 7 | AF54: 500 | AG54: =AF54*1.57% -> 7.85 | AH54: =AG54-AG54*30% -> 5.495
A55: ICEA-242 | B55: woman | C55: CHAPRON | D55: AGNES | E55: HARTER | F55: 1962-04-16 | G55: CAEN | H55: person | K55: fr | L55: 1 IMPASSE DE LA TUILERIE | M55: 31320 | N55: CASTANET | O55: FR | P55: FR | Q55: FR | R55: 06 81 94 01 21 | T55: agnes.harter@wanadoo.fr | X55: =CONCATENATE(C55," ",D55) -> CHAPRON AGNES | Z55: 100 | AA55: =Z55*2% -> 2 | AB55: =AA55-AA55*30% -> 1.4 | AC55: 200 | AD55: =AC55*2% -> 4 | AE55: =AD55-AD55*30% -> 2.8 | AF55: 200 | AG55: =AF55*1.57% -> 3.14 | AH55: =AG55-AG55*30% -> 2.198
A56: ICEA-43 | B56: man | C56: Cherdo | D56: Eric | F56: 1965-10-03 | G56: Saint Brieuc | H56: person | K56: fr | L56: 29 rue des Ménestrels | M56: 31670 | N56: Labège | O56: FR | P56: FR | Q56: FR | R56: 06 73 99 33 10 | T56: cherdoe@gmail.com | X56: =CONCATENATE(C56," ",D56) -> Cherdo Eric | Z56: 500 | AA56: =Z56*2% -> 10 | AB56: =AA56-AA56*30% -> 7 | AC56: 500 | AD56: =AC56*2% -> 10 | AE56: =AD56-AD56*30% -> 7 | AF56: 500 | AG56: =AF56*1.57% -> 7.85 | AH56: =AG56-AG56*30% -> 5.495
A57: ICEA-78 | B57: man | C57: CHERUBIN | D57: le maire Laurent | E57: Laurent | F57: 2020-05-12 | H57: company | I57: Commune de Labège | K57: fr | L57: rue de la Croix Rose | M57: 31670 | N57: Labège | O57: FR | P57: FR | Q57: FR | T57: cabinetmaire@ville-labege.fr | X57: =CONCATENATE(C57," ",D57) -> CHERUBIN le maire Laurent | Z57: 500 | AA57: =Z57*2% -> 10 | AB57: =AA57-AA57*30% -> 7 | AC57: 500 | AD57: =AC57*2% -> 10 | AE57: =AD57-AD57*30% -> 7 | AF57: 500 | AG57: =AF57*1.57% -> 7.85 | AH57: =AG57-AG57*30% -> 5.495
A58: ICEA-243 | B58: man | C58: CHICOT | D58: Le Vice-Président du SICOVAL Pascal | E58: Pascal | F58: 2020-02-09 | H58: company | I58: SICOVAL | K58: fr | L58: 110 rue Marco Polo | M58: 31670 | N58: Labège | O58: FR | P58: FR | Q58: FR | R58: 06 82 13 43 73 | T58: p.chicot@castanet-tolosan.fr | X58: =CONCATENATE(C58," ",D58) -> CHICOT Le Vice-Président du SICOVAL Pascal | AA58: =Z58*2% -> 0 | AB58: =AA58-AA58*30% -> 0 | AC58: 10000 | AD58: =AC58*2% -> 200 | AE58: =AD58-AD58*30% -> 140 | AF58: 10000 | AG58: =AF58*1.57% -> 157 | AH58: =AG58-AG58*30% -> 109.9
A59: ICEA-174 | B59: woman | C59: Combier | D59: Jessica | E59: . | F59: 1991-02-13 | G59: St Cyr | H59: person | K59: fr | L59: 2 chemin de la Plaine | M59: 31670 | N59: Labège | O59: FR | P59: FR | Q59: FR | R59: 06 84 94 85 89 | T59: jessica.combier@gmail.com | X59: =CONCATENATE(C59," ",D59) -> Combier Jessica | Z59: 50 | AA59: =Z59*2% -> 1 | AB59: =AA59-AA59*30% -> 0.7 | AC59: 50 | AD59: =AC59*2% -> 1 | AE59: =AD59-AD59*30% -> 0.7 | AF59: 50 | AG59: =AF59*1.57% -> 0.785 | AH59: =AG59-AG59*30% -> 0.5495
A60: ICEA-12 | B60: woman | C60: Comble | D60: Christine | F60: 1962-01-30 | G60: Seclin(59) | H60: person | K60: fr | L60: 3,ch de Combe d'Oly | M60: 31320 | N60: Castanet Tolosan | O60: FR | P60: FR | Q60: FR | R60: 06 34 55 27 92 | T60: emeraude3156@gmail.com | X60: =CONCATENATE(C60," ",D60) -> Comble Christine | Z60: 300 | AA60: =Z60*2% -> 6 | AB60: =AA60-AA60*30% -> 4.2 | AC60: 300 | AD60: =AC60*2% -> 6 | AE60: =AD60-AD60*30% -> 4.2 | AF60: 300 | AG60: =AF60*1.57% -> 4.71 | AH60: =AG60-AG60*30% -> 3.297
A61: ICEA-314 | B61: woman | C61: CONOR | D61: ALIONA | E61: . | F61: 1996-09-06 | G61: LE CHESNAY | H61: person | K61: fr | L61: Domaine de Montbrun | M61: 31450 | N61: MONTBRUNLAURAGAIS | O61: FR | P61: FR | Q61: FR | R61: +3343 76 44 47 | T61: a.conor@outlook.fr | U61: Mle Conor Aliona | V61: FR9520041010161465015Z0356 | W61: PSSTFRPPTOU | X61: =CONCATENATE(C61," ",D61) -> CONOR ALIONA | AA61: =Z61*2% -> 0 | AB61: =AA61-AA61*30% -> 0 | AC61: 500 | AD61: =AC61*2% -> 10 | AE61: =AD61-AD61*30% -> 7 | AF61: 500 | AG61: =AF61*1.57% -> 7.85 | AH61: =AG61-AG61*30% -> 5.495 | AI61: =AB61+AE61+AH61 -> 12.495 | AJ61: =CONCATENATE("2019/",'cooperators-41'!AB61,"Euros-2020/",'cooperators-41'!AE61,"Euros-2022/",'cooperators-41'!AH61,"Euros") -> 2019/0Euros-2020/7Euros-2022/5,495Euros
A62: ICEA-312 | B62: man | C62: CONOR | D62: Bernard | E62: . | F62: 1955-06-18 | G62: Champs sur Tarentaine | H62: person | K62: fr | L62: 13, domaine de Montbrun | M62: 31450 | N62: MONTBRUNLAURAGAIS | O62: FR | P62: FR | Q62: FR | R62: 06 60 91 85 22 | T62: conor.bernard@orange.fr | X62: =CONCATENATE(C62," ",D62) -> CONOR Bernard | AA62: =Z62*2% -> 0 | AB62: =AA62-AA62*30% -> 0 | AC62: 500 | AD62: =AC62*2% -> 10 | AE62: =AD62-AD62*30% -> 7 | AF62: 500 | AG62: =AF62*1.57% -> 7.85 | AH62: =AG62-AG62*30% -> 5.495
A63: ICEA-315 | B63: man | C63: CONOR | D63: MAXIME | E63: . | F63: 2000-10-05 | G63: MURET | H63: person | K63: fr | L63: 13, domaine de Montbrun | M63: 31450 | N63: MONTBRUNLAURAGAIS | O63: FR | P63: FR | Q63: FR | R63: 06 42 95 00 90 | T63: max.conor@hotmail.fr | X63: =CONCATENATE(C63," ",D63) -> CONOR MAXIME | AA63: =Z63*2% -> 0 | AB63: =AA63-AA63*30% -> 0 | AC63: 500 | AD63: =AC63*2% -> 10 | AE63: =AD63-AD63*30% -> 7 | AF63: 500 | AG63: =AF63*1.57% -> 7.85 | AH63: =AG63-AG63*30% -> 5.495
A64: ICEA-316 | B64: man | C64: CONOR | D64: ZORIAN | E64: . | F64: 2001-11-15 | G64: MONTBRUNLAURAGAIS | H64: person | K64: fr | L64: 13, domaine de Montbrun | M64: 31450 | N64: MONTBRUNLAURAGAIS | O64: FR | P64: FR | Q64: FR | R64: 06 42 95 96 51 | T64: oziran.conor@gmail.com | X64: =CONCATENATE(C64," ",D64) -> CONOR ZORIAN | AA64: =Z64*2% -> 0 | AB64: =AA64-AA64*30% -> 0 | AC64: 500 | AD64: =AC64*2% -> 10 | AE64: =AD64-AD64*30% -> 7 | AF64: 500 | AG64: =AF64*1.57% -> 7.85 | AH64: =AG64-AG64*30% -> 5.495
A65: ICEA-238 | B65: man | C65: Coppola | D65: Anselma | F65: 2009-10-08 | G65: Rouen | H65: gardian | K65: fr | L65: 7 imp des Romains | M65: 31320 | N65: Castanet Tolosan | O65: FR | P65: FR | Q65: FR | R65: 06 20 02 25 99 | T65: karimacoppola@gmail.com | X65: =CONCATENATE(C65," ",D65) -> Coppola Anselma | Z65: 50 | AA65: =Z65*2% -> 1 | AB65: =AA65-AA65*30% -> 0.7 | AC65: 50 | AD65: =AC65*2% -> 1 | AE65: =AD65-AD65*30% -> 0.7 | AF65: 50 | AG65: =AF65*1.57% -> 0.785 | AH65: =AG65-AG65*30% -> 0.5495
A66: ICEA-237 | B66: woman | C66: Coppola | D66: Marie-Amani | F66: 2008-04-04 | G66: Rouen | H66: gardian | K66: fr | L66: 7 imp des Romains | M66: 31320 | N66: Castanet Tolosan | O66: FR | P66: FR | Q66: FR | R66: 06 20 02 25 99 | T66: karimacoppola@gmail.com | X66: =CONCATENATE(C66," ",D66) -> Coppola Marie-Amani | Z66: 50 | AA66: =Z66*2% -> 1 | AB66: =AA66-AA66*30% -> 0.7 | AC66: 50 | AD66: =AC66*2% -> 1 | AE66: =AD66-AD66*30% -> 0.7 | AF66: 50 | AG66: =AF66*1.57% -> 0.785 | AH66: =AG66-AG66*30% -> 0.5495
A67: ICEA-359 | B67: woman | C67: Corberand | D67: Coralie | E67: . | F67: 1999-04-08 | G67: Toulouse | H67: person | K67: fr | L67: 8 rue | M67: 31750 | N67: Escalquens | O67: FR | P67: FR | Q67: FR | R67: +3352 26 17 04 | T67: coralie.corb@gmail.com | U67: CORBERAND CORALIE | V67: FR3630002040220000191621H93 | W67: CRLYFRPP | X67: =CONCATENATE(C67," ",D67) -> Corberand Coralie | AA67: =Z67*2% -> 0 | AB67: =AA67-AA67*30% -> 0 | AC67: 500 | AD67: =AC67*2% -> 10 | AE67: =AD67-AD67*30% -> 7 | AF67: 500 | AG67: =AF67*1.57% -> 7.85 | AH67: =AG67-AG67*30% -> 5.495 | AI67: =AB67+AE67+AH67 -> 12.495 | AJ67: =CONCATENATE("2019/",'cooperators-41'!AB67,"Euros-2020/",'cooperators-41'!AE67,"Euros-2022/",'cooperators-41'!AH67,"Euros") -> 2019/0Euros-2020/7Euros-2022/5,495Euros
A68: ICEA-370 | B68: woman | C68: Corberand | D68: Julie | E68: . | F68: 1998-07-20 | G68: Toulouse | H68: person | K68: fr | L68: 10, rue Henry Russell | M68: 31320 | N68: PECHABOU | O68: FR | P68: FR | Q68: FR | R68: 06 18 26 70 90 | T68: corberand.julie@gmail.com | X68: =CONCATENATE(C68," ",D68) -> Corberand Julie | AA68: =Z68*2% -> 0 | AB68: =AA68-AA68*30% -> 0 | AC68: 500 | AD68: =AC68*2% -> 10 | AE68: =AD68-AD68*30% -> 7 | AF68: 500 | AG68: =AF68*1.57% -> 7.85 | AH68: =AG68-AG68*30% -> 5.495
A69: ICEA-358 | B69: woman | C69: Corberand | D69: Léa | E69: . | F69: 2001-08-30 | G69: Toulouse | H69: person | K69: fr | L69: 8 rue du Mont Vallier | M69: 31750 | N69: Escalquens | O69: FR | P69: FR | Q69: FR | R69: 06 52 23 77 38 | T69: leacorb.vallier@gmail.com | X69: =CONCATENATE(C69," ",D69) -> Corberand Léa | AA69: =Z69*2% -> 0 | AB69: =AA69-AA69*30% -> 0 | AC69: 500 | AD69: =AC69*2% -> 10 | AE69: =AD69-AD69*30% -> 7 | AF69: 500 | AG69: =AF69*1.57% -> 7.85 | AH69: =AG69-AG69*30% -> 5.495
A70: ICEA-63 | B70: man | C70: Corberand | D70: Philippe | F70: 1966-01-15 | G70: Toulouse (31) | H70: person | K70: fr | L70: 8 rue du Mont Vallier | M70: 31750 | N70: Escalquens | O70: FR | P70: FR | Q70: FR | R70: 06 86 52 58 13 | T70: cathphil@free.fr | X70: =CONCATENATE(C70," ",D70) -> Corberand Philippe | Z70: 5000 | AA70: =Z70*2% -> 100 | AB70: =AA70-AA70*30% -> 70 | AC70: 5000 | AD70: =AC70*2% -> 100 | AE70: =AD70-AD70*30% -> 70 | AF70: 5000 | AG70: =AF70*1.57% -> 78.5 | AH70: =AG70-AG70*30% -> 54.95
A71: ICEA-357 | B71: man | C71: Corberand | D71: Romain | E71: . | F71: 1996-01-17 | G71: Toulouse | H71: person | K71: fr | L71: 8 rue du Mont Vallier | M71: 31750 | N71: Escalquens | O71: FR | P71: FR | Q71: FR | R71: 06 18 38 00 28 | T71: romain.corberand@gmail.com | X71: =CONCATENATE(C71," ",D71) -> Corberand Romain | AA71: =Z71*2% -> 0 | AB71: =AA71-AA71*30% -> 0 | AC71: 500 | AD71: =AC71*2% -> 10 | AE71: =AD71-AD71*30% -> 7 | AF71: 500 | AG71: =AF71*1.57% -> 7.85 | AH71: =AG71-AG71*30% -> 5.495
A72: ICEA-253 | B72: man | C72: Corderet | D72: David | F72: 1973-07-19 | G72: St Vallier | H72: person | K72: fr | L72: 8 allée de St Paul | M72: 31670 | N72: Labège | O72: FR | P72: FR | Q72: FR | R72: 06 14 68 50 15 | T72: david.corderet@gmail.com | X72: =CONCATENATE(C72," ",D72) -> Corderet David | Z72: 200 | AA72: =Z72*2% -> 4 | AB72: =AA72-AA72*30% -> 2.8 | AC72: 200 | AD72: =AC72*2% -> 4 | AE72: =AD72-AD72*30% -> 2.8 | AF72: 200 | AG72: =AF72*1.57% -> 3.14 | AH72: =AG72-AG72*30% -> 2.198
A73: ICEA-335 | B73: woman | C73: COSTE | D73: Sandra | E73: . | F73: 1987-06-23 | G73: LIMOGES | H73: person | K73: fr | L73: 56 Chemin d'en roques | M73: 31450 | N73: Ayguesvives | O73: FR | P73: FR | Q73: FR | R73: +3340 11 44 13 | T73: sandracoste87@gmail.com | U73: COSTE Sandra | V73: FR7630004007450000058344467 | W73: BNPAFRPPXXX | X73: =CONCATENATE(C73," ",D73) -> COSTE Sandra | AA73: =Z73*2% -> 0 | AB73: =AA73-AA73*30% -> 0 | AC73: 500 | AD73: =AC73*2% -> 10 | AE73: =AD73-AD73*30% -> 7 | AF73: 500 | AG73: =AF73*1.57% -> 7.85 | AH73: =AG73-AG73*30% -> 5.495 | AI73: =AB73+AE73+AH73 -> 12.495 | AJ73: =CONCATENATE("2019/",'cooperators-41'!AB73,"Euros-2020/",'cooperators-41'!AE73,"Euros-2022/",'cooperators-41'!AH73,"Euros") -> 2019/0Euros-2020/7Euros-2022/5,495Euros
A74: ICEA-275 | B74: man | C74: COTTE | D74: Blaise | F74: 1963-06-28 | G74: PARIS | H74: person | K74: fr | L74: 10 ROUTE DE CORRONSAC, LE VILLAGE | M74: 31450 | N74: MONTBRUNLAURAGAIS | O74: FR | P74: FR | Q74: FR | R74: 06 87 82 47 61 | T74: blaise.cotte@gmail.com | X74: =CONCATENATE(C74," ",D74) -> COTTE Blaise | AA74: =Z74*2% -> 0 | AB74: =AA74-AA74*30% -> 0 | AC74: 500 | AD74: =AC74*2% -> 10 | AE74: =AD74-AD74*30% -> 7 | AF74: 500 | AG74: =AF74*1.57% -> 7.85 | AH74: =AG74-AG74*30% -> 5.495
A75: ICEA-355 | B75: man | C75: Couderc | D75: Patrick | F75: 1954-07-06 | G75: Toulouse | H75: person | K75: fr | L75: 4 allée de Bufevent | M75: 31320 | N75: AUZEVILLE TOLOSANE | O75: FR | P75: FR | Q75: FR | R75: +3319 11 95 27 | T75: patrick.couderc6@orange.fr | U75: COUDERC PATRICK | V75: FR7613135000800414454850442 | W75: CEPAFRPP313 | X75: =CONCATENATE(C75," ",D75) -> Couderc Patrick | AA75: =Z75*2% -> 0 | AB75: =AA75-AA75*30% -> 0 | AC75: 1000 | AD75: =AC75*2% -> 20 | AE75: =AD75-AD75*30% -> 14 | AF75: 1000 | AG75: =AF75*1.57% -> 15.7 | AH75: =AG75-AG75*30% -> 10.99 | AI75: =AB75+AE75+AH75 -> 24.99 | AJ75: =CONCATENATE("2019/",'cooperators-41'!AB75,"Euros-2020/",'cooperators-41'!AE75,"Euros-2022/",'cooperators-41'!AH75,"Euros") -> 2019/0Euros-2020/14Euros-2022/10,99Euros
A76: ICEA-168 | B76: man | C76: Couderc | D76: Romain | F76: 1988-10-17 | G76: villefranche de rouergue | H76: person | K76: fr | L76: 15 rue de Castanet | M76: 31400 | N76: TOULOUSE | O76: FR | P76: FR | Q76: FR | R76: 06 48 06 62 20 | T76: romcouderc@hotmail.fr | X76: =CONCATENATE(C76," ",D76) -> Couderc Romain | Z76: 50 | AA76: =Z76*2% -> 1 | AB76: =AA76-AA76*30% -> 0.7 | AC76: 50 | AD76: =AC76*2% -> 1 | AE76: =AD76-AD76*30% -> 0.7 | AF76: 50 | AG76: =AF76*1.57% -> 0.785 | AH76: =AG76-AG76*30% -> 0.5495
A77: ICEA-367 | B77: man | C77: COURLET | D77: Stéphane | E77: . | F77: 1972-11-12 | G77: Villeneuve-sur-Lot | H77: person | K77: fr | L77: 1 rue Valette, Appt E603 | M77: 31450 | N77: POMPERTUZAT | O77: FR | P77: FR | Q77: FR | R77: 06 07 77 74 31 | T77: icedrain44@gmail.com | X77: =CONCATENATE(C77," ",D77) -> COURLET Stéphane | AA77: =Z77*2% -> 0 | AB77: =AA77-AA77*30% -> 0 | AC77: 500 | AD77: =AC77*2% -> 10 | AE77: =AD77-AD77*30% -> 7 | AF77: 500 | AG77: =AF77*1.57% -> 7.85 | AH77: =AG77-AG77*30% -> 5.495
A78: ICEA-257 | B78: man | C78: Crasnier | D78: Fabrice | F78: 1969-05-31 | G78: Angers | H78: person | K78: fr | L78: 18 av Paul Riquet | M78: 31670 | N78: Labège | O78: FR | P78: FR | Q78: FR | R78: 06 14 49 39 20 | T78: fabrice.crasnier@wanadoo.fr | X78: =CONCATENATE(C78," ",D78) -> Crasnier Fabrice | AA78: =Z78*2% -> 0 | AB78: =AA78-AA78*30% -> 0 | AC78: 50 | AD78: =AC78*2% -> 1 | AE78: =AD78-AD78*30% -> 0.7 | AF78: 50 | AG78: =AF78*1.57% -> 0.785 | AH78: =AG78-AG78*30% -> 0.5495
A79: ICEA-139 | B79: man | C79: Crouzil | D79: le maire Bernard | F79: 2018-04-19 | H79: company | I79: Commune de Donneville | K79: fr | L79: Place du Languedoc | M79: 31450 | N79: Donneville | O79: FR | P79: FR | Q79: FR | T79: mairie-donneville@wanadoo.fr | X79: =CONCATENATE(C79," ",D79) -> Crouzil le maire Bernard | Z79: 250 | AA79: =Z79*2% -> 5 | AB79: =AA79-AA79*30% -> 3.5 | AC79: 250 | AD79: =AC79*2% -> 5 | AE79: =AD79-AD79*30% -> 3.5 | AF79: 250 | AG79: =AF79*1.57% -> 3.925 | AH79: =AG79-AG79*30% -> 2.7475
A80: ICEA-48 | B80: man | C80: Crouzil | D80: Bernard | F80: 1956-01-29 | G80: Doneville | H80: person | K80: fr | L80: 17 route Départementale 813 | M80: 31450 | N80: Donneville | O80: FR | P80: FR | Q80: FR | R80: 06 87 52 05 99 | T80: bernard.crouzil@wanadoo.fr | X80: =CONCATENATE(C80," ",D80) -> Crouzil Bernard | Z80: 200 | AA80: =Z80*2% -> 4 | AB80: =AA80-AA80*30% -> 2.8 | AC80: 200 | AD80: =AC80*2% -> 4 | AE80: =AD80-AD80*30% -> 2.8 | AF80: 200 | AG80: =AF80*1.57% -> 3.14 | AH80: =AG80-AG80*30% -> 2.198
A81: ICEA-382 | B81: man | C81: Culerrier | D81: Raphael | F81: 1973-02-20 | G81: senlis | H81: person | K81: fr | L81: 30 rue des moulins | M81: 31450 | N81: MONTGISCARD | O81: FR | P81: FR | Q81: FR | R81: +3382 56 04 40 | T81: rafcucu@gmail.com | U81: Culerrier | V81: FR7617807000120531916773640 | W81: CCBPFRPPTLS | X81: =CONCATENATE(C81," ",D81) -> Culerrier Raphael | AA81: =Z81*2% -> 0 | AB81: =AA81-AA81*30% -> 0 | AD81: =AC81*2% -> 0 | AE81: =AD81-AD81*30% -> 0 | AF81: 100 | AG81: =AF81*1.57% -> 1.57 | AH81: =AG81-AG81*30% -> 1.099 | AI81: =AB81+AE81+AH81 -> 1.099 | AJ81: =CONCATENATE("2019/",'cooperators-41'!AB81,"Euros-2020/",'cooperators-41'!AE81,"Euros-2022/",'cooperators-41'!AH81,"Euros") -> 2019/0Euros-2020/0Euros-2022/1,099Euros
A82: ICEA-261 | B82: woman | C82: Da Silva | D82: Elodie | E82: Lassartesse | F82: 1986-12-30 | G82: Cahors | H82: person | K82: fr | L82: 32 Ch de Canteloup | M82: 31670 | N82: Labège | O82: FR | P82: FR | Q82: FR | R82: 06 32 82 14 33 | T82: elodie.dasilvab@gmail.com | X82: =CONCATENATE(C82," ",D82) -> Da Silva Elodie | Z82: 50 | AA82: =Z82*2% -> 1 | AB82: =AA82-AA82*30% -> 0.7 | AC82: 50 | AD82: =AC82*2% -> 1 | AE82: =AD82-AD82*30% -> 0.7 | AF82: 50 | AG82: =AF82*1.57% -> 0.785 | AH82: =AG82-AG82*30% -> 0.5495
A83: ICEA-262 | B83: woman | C83: Da Silva | D83: Marion | E83: Da Silva | F83: 1989-01-30 | G83: Cahors | H83: person | K83: fr | L83: appt 5 29 av Marcel Langer | M83: 31400 | N83: Toulouse | O83: FR | P83: FR | Q83: FR | R83: 06 07 82 26 37 | T83: marion.dasilva99@gmail.com | X83: =CONCATENATE(C83," ",D83) -> Da Silva Marion | Z83: 50 | AA83: =Z83*2% -> 1 | AB83: =AA83-AA83*30% -> 0.7 | AC83: 50 | AD83: =AC83*2% -> 1 | AE83: =AD83-AD83*30% -> 0.7 | AF83: 50 | AG83: =AF83*1.57% -> 0.785 | AH83: =AG83-AG83*30% -> 0.5495
A84: ICEA-205 | B84: man | C84: Dal Zovo | D84: Bruno | E84: . | F84: 1957-01-14 | G84: Agen | H84: person | K84: fr | L84: 30 chemin Font Saint Sernin | M84: 31670 | N84: Labege | O84: FR | P84: FR | Q84: FR | R84: 06 80 14 98 26 | T84: bdzed@orange.fr | X84: =CONCATENATE(C84," ",D84) -> Dal Zovo Bruno | Z84: 50 | AA84: =Z84*2% -> 1 | AB84: =AA84-AA84*30% -> 0.7 | AC84: 50 | AD84: =AC84*2% -> 1 | AE84: =AD84-AD84*30% -> 0.7 | AF84: 50 | AG84: =AF84*1.57% -> 0.785 | AH84: =AG84-AG84*30% -> 0.5495
A85: ICEA-259 | B85: man | C85: Dal Zovo | D85: Rémi | F85: 1990-12-26 | G85: Toulouse | H85: person | K85: fr | L85: 12 rue des oliviers | M85: 31450 | N85: Deyme | O85: FR | P85: FR | Q85: FR | R85: 06 21 40 66 59 | T85: remidz10@gmail.com | X85: =CONCATENATE(C85," ",D85) -> Dal Zovo Rémi | Z85: 50 | AA85: =Z85*2% -> 1 | AB85: =AA85-AA85*30% -> 0.7 | AC85: 50 | AD85: =AC85*2% -> 1 | AE85: =AD85-AD85*30% -> 0.7 | AF85: 50 | AG85: =AF85*1.57% -> 0.785 | AH85: =AG85-AG85*30% -> 0.5495
A86: ICEA-260 | B86: man | C86: Dal Zovo | D86: Thomas | F86: 1987-05-22 | G86: Toulouse | H86: person | K86: fr | L86: 30 ch de Bessyre | M86: 31240 | N86: St Jean | O86: FR | P86: FR | Q86: FR | R86: 06 40 14 63 06 | T86: tdalzovo@gmail.com | X86: =CONCATENATE(C86," ",D86) -> Dal Zovo Thomas | Z86: 50 | AA86: =Z86*2% -> 1 | AB86: =AA86-AA86*30% -> 0.7 | AC86: 50 | AD86: =AC86*2% -> 1 | AE86: =AD86-AD86*30% -> 0.7 | AF86: 50 | AG86: =AF86*1.57% -> 0.785 | AH86: =AG86-AG86*30% -> 0.5495
A87: ICEA-154 | B87: woman | C87: Darcourt | D87: Karine | E87: Tropis | F87: 1976-03-05 | G87: Rodez (12) | H87: person | K87: fr | L87: 8 chemin des Campares | M87: 31450 | N87: Ayguesvives | O87: FR | P87: FR | Q87: FR | R87: 06 51 45 76 12 | T87: karine.tropis@gmail.com | X87: =CONCATENATE(C87," ",D87) -> Darcourt Karine | Z87: 100 | AA87: =Z87*2% -> 2 | AB87: =AA87-AA87*30% -> 1.4 | AC87: 100 | AD87: =AC87*2% -> 2 | AE87: =AD87-AD87*30% -> 1.4 | AF87: 100 | AG87: =AF87*1.57% -> 1.57 | AH87: =AG87-AG87*30% -> 1.099
A88: ICEA-77 | B88: man | C88: Dardel | D88: Renaud | F88: 1955-09-20 | G88: Philippeville | H88: person | K88: fr | L88: 17 bis Ch Fontaine St Sernin | M88: 31670 | N88: Labège | O88: FR | P88: FR | Q88: FR | R88: 06 13 75 33 47 | T88: renaud.dardel@free.fr | X88: =CONCATENATE(C88," ",D88) -> Dardel Renaud | Z88: 500 | AA88: =Z88*2% -> 10 | AB88: =AA88-AA88*30% -> 7 | AC88: 500 | AD88: =AC88*2% -> 10 | AE88: =AD88-AD88*30% -> 7 | AF88: 500 | AG88: =AF88*1.57% -> 7.85 | AH88: =AG88-AG88*30% -> 5.495
A89: ICEA-143 | B89: man | C89: David | D89: Bruno | F89: 1959-05-20 | G89: Dôle | H89: person | K89: fr | L89: 1 impasse du Pech | M89: 31750 | N89: Escalquens | O89: FR | P89: FR | Q89: FR | R89: 06 07 67 89 58 | T89: brunoxdavid@gmail.com | X89: =CONCATENATE(C89," ",D89) -> David Bruno | Z89: 250 | AA89: =Z89*2% -> 5 | AB89: =AA89-AA89*30% -> 3.5 | AC89: 250 | AD89: =AC89*2% -> 5 | AE89: =AD89-AD89*30% -> 3.5 | AF89: 250 | AG89: =AF89*1.57% -> 3.925 | AH89: =AG89-AG89*30% -> 2.7475
A90: ICEA-239 | B90: woman | C90: De grenier | D90: Muriel | E90: De Grenier-Clemendot | F90: 1966-03-21 | G90: Toulouse | H90: person | K90: fr | L90: 639 ch de St Papoul | M90: 31450 | N90: Odars | O90: FR | P90: FR | Q90: FR | R90: 06 81 52 16 61 | T90: muriel.dgc@orange.fr | X90: =CONCATENATE(C90," ",D90) -> De grenier Muriel | Z90: 50 | AA90: =Z90*2% -> 1 | AB90: =AA90-AA90*30% -> 0.7 | AC90: 50 | AD90: =AC90*2% -> 1 | AE90: =AD90-AD90*30% -> 0.7 | AF90: 100 | AG90: =AF90*1.57% -> 1.57 | AH90: =AG90-AG90*30% -> 1.099
A91: ICEA-296 | B91: woman | C91: Debril | D91: Amelie | E91: Debril | F91: 1994-11-30 | G91: St Priest en Jarez | H91: person | K91: fr | L91: 79 avenue de la Gloire -Apt 170 Bat D | M91: 31500 | N91: Toulouse | O91: FR | P91: FR | Q91: FR | R91: 06 43 29 15 38 | T91: amelie.debril@gmail.com | X91: =CONCATENATE(C91," ",D91) -> Debril Amelie | AA91: =Z91*2% -> 0 | AB91: =AA91-AA91*30% -> 0 | AC91: 50 | AD91: =AC91*2% -> 1 | AE91: =AD91-AD91*30% -> 0.7 | AF91: 50 | AG91: =AF91*1.57% -> 0.785 | AH91: =AG91-AG91*30% -> 0.5495
A92: ICEA-202 | B92: man | C92: DECONINCK | D92: JEAN LUC | E92: . | F92: 1958-07-12 | G92: SAMEON (59) | H92: person | K92: fr | L92: 904 ROUTE DE MONTGISCARD LE PEYRONNET | M92: 31450 | N92: MONTBRUNLAURAGAIS | O92: FR | P92: FR | Q92: FR | R92: 05 61 81 86 77 | T92: jl.deco@wanadoo.fr | X92: =CONCATENATE(C92," ",D92) -> DECONINCK JEAN LUC | Z92: 500 | AA92: =Z92*2% -> 10 | AB92: =AA92-AA92*30% -> 7 | AC92: 500 | AD92: =AC92*2% -> 10 | AE92: =AD92-AD92*30% -> 7 | AF92: 500 | AG92: =AF92*1.57% -> 7.85 | AH92: =AG92-AG92*30% -> 5.495
A93: ICEA-28 | B93: man | C93: Delmas | D93: Pascal | F93: 1964-06-03 | G93: Albi (81) | H93: person | K93: fr | L93: 9 chemin des maynardes | M93: 31670 | N93: Labège | O93: FR | P93: FR | Q93: FR | R93: +336 76 30 31 42 | T93: pascal.delmas31@orange.fr | U93: M et Mme DELMAS Pascal | V93: FR7613135000800424199894623 | W93: CEPAFRPP313 | X93: =CONCATENATE(C93," ",D93) -> Delmas Pascal | Z93: 500 | AA93: =Z93*2% -> 10 | AB93: =AA93-AA93*30% -> 7 | AC93: 500 | AD93: =AC93*2% -> 10 | AE93: =AD93-AD93*30% -> 7 | AF93: 500 | AG93: =AF93*1.57% -> 7.85 | AH93: =AG93-AG93*30% -> 5.495 | AI93: =AB93+AE93+AH93 -> 19.495 | AJ93: =CONCATENATE("2019/",'cooperators-41'!AB93,"Euros-2020/",'cooperators-41'!AE93,"Euros-2022/",'cooperators-41'!AH93,"Euros") -> 2019/7Euros-2020/7Euros-2022/5,495Euros
A94: ICEA-126 | B94: woman | C94: Depaix | D94: Elisabeth | F94: 1965-03-23 | G94: Lyon | H94: person | K94: fr | L94: 4 rue des Troubadours | M94: 31670 | N94: Labège | O94: FR | P94: FR | Q94: FR | R94: 06 88 27 47 16 | T94: elisa.depaix@free.fr | X94: =CONCATENATE(C94," ",D94) -> Depaix Elisabeth | Z94: 50 | AA94: =Z94*2% -> 1 | AB94: =AA94-AA94*30% -> 0.7 | AC94: 50 | AD94: =AC94*2% -> 1 | AE94: =AD94-AD94*30% -> 0.7 | AF94: 50 | AG94: =AF94*1.57% -> 0.785 | AH94: =AG94-AG94*30% -> 0.5495
A95: ICEA-05 | B95: man | C95: Depaux | D95: Jean Marie | F95: 1952-08-11 | G95: Epernay (51) | H95: person | K95: fr | L95: 5, chemin du Val | M95: 31670 | N95: Labège | O95: FR | P95: FR | Q95: FR | R95: +3347 90 16 91 | T95: jmm.depaux@wanadoo.fr | U95: DEPAUX J M OU MME | V95: FR7610268025861058240040090 | W95: COURFR2T | X95: =CONCATENATE(C95," ",D95) -> Depaux Jean Marie | Z95: 100 | AA95: =Z95*2% -> 2 | AB95: =AA95-AA95*30% -> 1.4 | AC95: 200 | AD95: =AC95*2% -> 4 | AE95: =AD95-AD95*30% -> 2.8 | AF95: 200 | AG95: =AF95*1.57% -> 3.14 | AH95: =AG95-AG95*30% -> 2.198 | AI95: =AB95+AE95+AH95 -> 6.398 | AJ95: =CONCATENATE("2019/",'cooperators-41'!AB95,"Euros-2020/",'cooperators-41'!AE95,"Euros-2022/",'cooperators-41'!AH95,"Euros") -> 2019/1,4Euros-2020/2,8Euros-2022/2,198Euros
A96: ICEA-437 | B96: woman | C96: Desq | D96: Josiane | F96: 1956-01-21 | G96: Boulogne-Billancourt | H96: person | K96: fr | L96: chemin de Ducède | M96: 31190 | N96: GREPIAC | O96: FR | P96: FR | Q96: FR | R96: 33665120224 | T96: jdesq@aimi.ovh | X96: =CONCATENATE(C96," ",D96) -> Desq Josiane | AA96: =Z96*2% -> 0 | AB96: =AA96-AA96*30% -> 0 | AD96: =AC96*2% -> 0 | AE96: =AD96-AD96*30% -> 0 | AF96: 50 | AG96: =AF96*1.57% -> 0.785 | AH96: =AG96-AG96*30% -> 0.5495
A97: ICEA-141 | B97: woman | C97: Doerler | D97: Bérangère | E97: Doeler-benoit | F97: 1971-06-06 | G97: Paris VI | H97: person | K97: fr | L97: 6 bis rueFrançois Miquel | M97: 31320 | N97: Castanet Tolosan | O97: FR | P97: FR | Q97: FR | R97: 06 11 28 76 08 | T97: berengere.doerler@wanadoo.fr | X97: =CONCATENATE(C97," ",D97) -> Doerler Bérangère | Z97: 50 | AA97: =Z97*2% -> 1 | AB97: =AA97-AA97*30% -> 0.7 | AC97: 50 | AD97: =AC97*2% -> 1 | AE97: =AD97-AD97*30% -> 0.7 | AF97: 50 | AG97: =AF97*1.57% -> 0.785 | AH97: =AG97-AG97*30% -> 0.5495
A98: ICEA-411 | B98: man | C98: DOUMERC | D98: Jacques | F98: 1950-09-18 | G98: Saint Prpjet | H98: person | K98: fr | L98: 6 avenue du moulin vieux | M98: 31810 | N98: VENERQUE | O98: FR | P98: FR | Q98: FR | R98: 33608914292 | T98: jacques.doumerc@orange.fr | V98: NULL | X98: =CONCATENATE(C98," ",D98) -> DOUMERC Jacques | AA98: =Z98*2% -> 0 | AB98: =AA98-AA98*30% -> 0 | AD98: =AC98*2% -> 0 | AE98: =AD98-AD98*30% -> 0 | AF98: 500 | AG98: =AF98*1.57% -> 7.85 | AH98: =AG98-AG98*30% -> 5.495
A99: ICEA-15 | B99: man | C99: Ducert | D99: Claude | F99: 1934-07-25 | G99: Martigny le Comte (71) | H99: person | K99: fr | L99: Appartement 3 – 9 rue Coluche | M99: 31130 | N99: Balma | O99: FR | P99: FR | Q99: FR | R99: 06 82 34 18 66 | T99: ducert.toulouse@wanadoo.fr | X99: =CONCATENATE(C99," ",D99) -> Ducert Claude | Z99: 500 | AA99: =Z99*2% -> 10 | AB99: =AA99-AA99*30% -> 7 | AC99: 500 | AD99: =AC99*2% -> 10 | AE99: =AD99-AD99*30% -> 7 | AF99: 500 | AG99: =AF99*1.57% -> 7.85 | AH99: =AG99-AG99*30% -> 5.495
A100: ICEA-176 | B100: woman | C100: DUGUY | D100: LAURENCE | F100: 1973-12-23 | G100: LABEGE | H100: person | K100: fr | L100: 6 TER Allée Chantecaille | M100: 31670 | N100: LABEGE | O100: FR | P100: FR | Q100: FR | R100: 06 29 15 65 75 | T100: laurence.duguy@laposte.net | X100: =CONCATENATE(C100," ",D100) -> DUGUY LAURENCE | Z100: 50 | AA100: =Z100*2% -> 1 | AB100: =AA100-AA100*30% -> 0.7 | AC100: 50 | AD100: =AC100*2% -> 1 | AE100: =AD100-AD100*30% -> 0.7 | AF100: 50 | AG100: =AF100*1.57% -> 0.785 | AH100: =AG100-AG100*30% -> 0.5495
A101: ICEA-83 | B101: man | C101: Dutard | D101: Remi | F101: 1976-05-28 | G101: Toulouse | H101: person | K101: fr | L101: 18 rue Chatlas | M101: 31200 | N101: Toulouse | O101: FR | P101: FR | Q101: FR | R101: 05 61 57 34 27 | T101: remi_dutard@yahoo.fr | X101: =CONCATENATE(C101," ",D101) -> Dutard Remi | Z101: 500 | AA101: =Z101*2% -> 10 | AB101: =AA101-AA101*30% -> 7 | AC101: 500 | AD101: =AC101*2% -> 10 | AE101: =AD101-AD101*30% -> 7 | AF101: 500 | AG101: =AF101*1.57% -> 7.85 | AH101: =AG101-AG101*30% -> 5.495
A102: ICEA-209 | B102: woman | C102: Enjalbert | D102: Gaelle | F102: 1979-05-05 | G102: Mende (48) | H102: person | K102: fr | L102: Chemin du Tricou | M102: 31670 | N102: Labège | O102: FR | P102: FR | Q102: FR | R102: +3398 54 71 65 | T102: enjalbertgaelle-31@yahoo.fr | U102: Enjalbert Gaelle | V102: FR4620041010160640974C03737 | W102: PSSTFRPPTOU | X102: =CONCATENATE(C102," ",D102) -> Enjalbert Gaelle | Z102: 300 | AA102: =Z102*2% -> 6 | AB102: =AA102-AA102*30% -> 4.2 | AC102: 300 | AD102: =AC102*2% -> 6 | AE102: =AD102-AD102*30% -> 4.2 | AF102: 300 | AG102: =AF102*1.57% -> 4.71 | AH102: =AG102-AG102*30% -> 3.297 | AI102: =AB102+AE102+AH102 -> 11.697 | AJ102: =CONCATENATE("2019/",'cooperators-41'!AB102,"Euros-2020/",'cooperators-41'!AE102,"Euros-2022/",'cooperators-41'!AH102,"Euros") -> 2019/4,2Euros-2020/4,2Euros-2022/3,297Euros
A103: ICEA-290 | B103: man | C103: Espigat | D103: Serge | F103: 1977-08-15 | H103: person | K103: fr | L103: 1 chemin de Pichanelle | M103: 31320 | N103: Vielle-Toulouse | O103: FR | P103: FR | Q103: FR | R103: 06 80 33 61 95 | T103: s.espigat@i-projectinvest.fr | X103: =CONCATENATE(C103," ",D103) -> Espigat Serge | AA103: =Z103*2% -> 0 | AB103: =AA103-AA103*30% -> 0 | AC103: 500 | AD103: =AC103*2% -> 10 | AE103: =AD103-AD103*30% -> 7 | AF103: 500 | AG103: =AF103*1.57% -> 7.85 | AH103: =AG103-AG103*30% -> 5.495
A104: ICEA-424 | B104: woman | C104: Estang | D104: Nadia | E104: Srali Lami | F104: 1966-10-08 | G104: Fès- Maroc | H104: person | K104: fr | L104: 19 résidence des coteaux | M104: 31810 | N104: VENERQUE | O104: FR | P104: FR | Q104: FR | R104: 615129046 | T104: nadia.estang@wanadoo.fr | X104: =CONCATENATE(C104," ",D104) -> Estang Nadia | AA104: =Z104*2% -> 0 | AB104: =AA104-AA104*30% -> 0 | AD104: =AC104*2% -> 0 | AE104: =AD104-AD104*30% -> 0 | AF104: 250 | AG104: =AF104*1.57% -> 3.925 | AH104: =AG104-AG104*30% -> 2.7475
A105: ICEA-325 | B105: woman | C105: Esteulle | D105: Isabelle | E105: . | F105: 1978-07-14 | G105: Vannes | H105: person | K105: fr | L105: 14 rue Delpy | M105: 31300 | N105: Toulouse | O105: FR | P105: FR | Q105: FR | R105: 06 63 46 55 64 | T105: iesteull@yahoo.fr | X105: =CONCATENATE(C105," ",D105) -> Esteulle Isabelle | AA105: =Z105*2% -> 0 | AB105: =AA105-AA105*30% -> 0 | AC105: 250 | AD105: =AC105*2% -> 5 | AE105: =AD105-AD105*30% -> 3.5 | AF105: 250 | AG105: =AF105*1.57% -> 3.925 | AH105: =AG105-AG105*30% -> 2.7475
A106: ICEA-196 | B106: woman | C106: FARINA | D106: Anne | E106: FARINA-COTTE | F106: 1961-02-05 | G106: 31 TOULOUSE | H106: person | K106: fr | L106: Le village | M106: 31450 | N106: MONTBRUNLAURAGAIS | O106: FR | P106: FR | Q106: FR | R106: 06 72 54 18 76 | T106: annecotte@free.fr | X106: =CONCATENATE(C106," ",D106) -> FARINA Anne | Z106: 500 | AA106: =Z106*2% -> 10 | AB106: =AA106-AA106*30% -> 7 | AC106: 500 | AD106: =AC106*2% -> 10 | AE106: =AD106-AD106*30% -> 7 | AF106: 500 | AG106: =AF106*1.57% -> 7.85 | AH106: =AG106-AG106*30% -> 5.495
A107: ICEA-95 | B107: woman | C107: Faure | D107: Noémie | F107: 2016-06-13 | G107: Noumea | H107: gardian | K107: fr | L107: 23 rue Aymard-Bat E, Apt 61,Res S Paru | M107: 98800 | N107: Noumea- N calédomie | O107: FR | P107: FR | Q107: FR | R107: 00 687 79 73 68 | T107: cedric.faure@gmail.com | X107: =CONCATENATE(C107," ",D107) -> Faure Noémie | Z107: 50 | AA107: =Z107*2% -> 1 | AB107: =AA107-AA107*30% -> 0.7 | AC107: 50 | AD107: =AC107*2% -> 1 | AE107: =AD107-AD107*30% -> 0.7 | AF107: 50 | AG107: =AF107*1.57% -> 0.785 | AH107: =AG107-AG107*30% -> 0.5495
A108: ICEA-286 | B108: woman | C108: Faure | D108: Olivia | F108: 2020-02-27 | G108: Nouméa | H108: gardian | K108: fr | L108: 23 Rue Aymard-Résidence Serena Park Bat E appt 31 | M108: 98800 | N108: Nouméa | O108: FR | P108: FR | Q108: FR | T108: nanoudessables@hotmail.com | X108: =CONCATENATE(C108," ",D108) -> Faure Olivia | AA108: =Z108*2% -> 0 | AB108: =AA108-AA108*30% -> 0 | AC108: 50 | AD108: =AC108*2% -> 1 | AE108: =AD108-AD108*30% -> 0.7 | AF108: 50 | AG108: =AF108*1.57% -> 0.785 | AH108: =AG108-AG108*30% -> 0.5495
A109: ICEA-127 | B109: man | C109: Faures | D109: Anne | F109: 1968-05-04 | G109: Toulouse | H109: person | K109: fr | L109: 23 ch des Terres Hautes | M109: 31670 | N109: Labège | O109: FR | P109: FR | Q109: FR | R109: 06 67 70 74 18 | T109: annefaures@free.fr | X109: =CONCATENATE(C109," ",D109) -> Faures Anne | Z109: 500 | AA109: =Z109*2% -> 10 | AB109: =AA109-AA109*30% -> 7 | AC109: 500 | AD109: =AC109*2% -> 10 | AE109: =AD109-AD109*30% -> 7 | AF109: 500 | AG109: =AF109*1.57% -> 7.85 | AH109: =AG109-AG109*30% -> 5.495
A110: ICEA-195 | B110: woman | C110: Feraud | D110: Anne-Marie | E110: Noeureuil | F110: 1956-03-03 | G110: Montesquieu V | H110: person | K110: fr | L110: 8 chemin de Riompeyre | M110: 31320 | N110: Castanet Tolosan | O110: FR | P110: FR | Q110: FR | R110: 05 61 27 78 57 | T110: noeureuil.anne-marie@orange.fr | X110: =CONCATENATE(C110," ",D110) -> Feraud Anne-Marie | Z110: 500 | AA110: =Z110*2% -> 10 | AB110: =AA110-AA110*30% -> 7 | AC110: 500 | AD110: =AC110*2% -> 10 | AE110: =AD110-AD110*30% -> 7 | AF110: 500 | AG110: =AF110*1.57% -> 7.85 | AH110: =AG110-AG110*30% -> 5.495
A111: ICEA-300 | B111: woman | C111: Fine | D111: Pascale | F111: 1971-08-06 | G111: Marseille | H111: person | K111: fr | L111: 2 Hameau de Mange Pommes | M111: 31520 | N111: Ramonville | O111: FR | P111: FR | Q111: FR | R111: 05 67 06 23 03 | T111: ppff05@yahoo.fr | X111: =CONCATENATE(C111," ",D111) -> Fine Pascale | AA111: =Z111*2% -> 0 | AB111: =AA111-AA111*30% -> 0 | AC111: 500 | AD111: =AC111*2% -> 10 | AE111: =AD111-AD111*30% -> 7 | AF111: 500 | AG111: =AF111*1.57% -> 7.85 | AH111: =AG111-AG111*30% -> 5.495
A112: ICEA-183 | B112: woman | C112: FLEURY | D112: Anais | E112: . | F112: 2017-07-15 | G112: Toulouse | H112: gardian | K112: fr | L112: 6 impasse des Garbiers Appt 50 | M112: 31320 | N112: Castanet Tolosan | O112: FR | P112: FR | Q112: FR | R112: 09 82 50 76 98 | T112: amandinegimenezphotographie@gmail.com | X112: =CONCATENATE(C112," ",D112) -> FLEURY Anais | Z112: 50 | AA112: =Z112*2% -> 1 | AB112: =AA112-AA112*30% -> 0.7 | AC112: 50 | AD112: =AC112*2% -> 1 | AE112: =AD112-AD112*30% -> 0.7 | AF112: 50 | AG112: =AF112*1.57% -> 0.785 | AH112: =AG112-AG112*30% -> 0.5495
A113: ICEA-184 | B113: man | C113: FLEURY | D113: Quentin | E113: FLEURY | F113: 2013-11-07 | G113: Toulouse | H113: gardian | K113: fr | L113: 6 impasse des Garbiers Appt 50 | M113: 31320 | N113: Castanet Tolosan | O113: FR | P113: FR | Q113: FR | R113: 09 82 50 76 98 | T113: amandinegimenezphotographie@gmail.com | X113: =CONCATENATE(C113," ",D113) -> FLEURY Quentin | Z113: 50 | AA113: =Z113*2% -> 1 | AB113: =AA113-AA113*30% -> 0.7 | AC113: 50 | AD113: =AC113*2% -> 1 | AE113: =AD113-AD113*30% -> 0.7 | AF113: 50 | AG113: =AF113*1.57% -> 0.785 | AH113: =AG113-AG113*30% -> 0.5495
A114: ICEA-351 | B114: man | C114: Fouchard | D114: Alexandre | F114: 1994-02-21 | G114: Arles | H114: person | K114: fr | L114: Les Fieux Nords | M114: 46300 | N114: Fajoles | O114: FR | P114: FR | Q114: FR | R114: 06 70 95 18 21 | T114: albatoralex@gmail.com | X114: =CONCATENATE(C114," ",D114) -> Fouchard Alexandre | AA114: =Z114*2% -> 0 | AB114: =AA114-AA114*30% -> 0 | AC114: 100 | AD114: =AC114*2% -> 2 | AE114: =AD114-AD114*30% -> 1.4 | AF114: 100 | AG114: =AF114*1.57% -> 1.57 | AH114: =AG114-AG114*30% -> 1.099
A115: ICEA-118 | B115: woman | C115: Fouchard | D115: Caroline | F115: 1965-04-13 | G115: Paris 6eme | H115: person | K115: fr | L115: 96 bld de l'embouchure | M115: 31200 | N115: Toulouse | O115: FR | P115: FR | Q115: FR | R115: +336 74 13 02 72 | T115: caroline.fouchard@free.fr | U115: Caroline Fouchard | V115: FR7630004018720000059982770 | W115: BNPAFRPPXXX | X115: =CONCATENATE(C115," ",D115) -> Fouchard Caroline | Z115: 50 | AA115: =Z115*2% -> 1 | AB115: =AA115-AA115*30% -> 0.7 | AC115: 100 | AD115: =AC115*2% -> 2 | AE115: =AD115-AD115*30% -> 1.4 | AF115: 100 | AG115: =AF115*1.57% -> 1.57 | AH115: =AG115-AG115*30% -> 1.099 | AI115: =AB115+AE115+AH115 -> 3.199 | AJ115: =CONCATENATE("2019/",'cooperators-41'!AB115,"Euros-2020/",'cooperators-41'!AE115,"Euros-2022/",'cooperators-41'!AH115,"Euros") -> 2019/0,7Euros-2020/1,4Euros-2022/1,099Euros
A116: ICEA-353 | B116: woman | C116: Fouchard | D116: Ester | F116: 1999-04-25 | G116: Toulouse | H116: person | K116: fr | L116: Les Fieux Nords | M116: 46300 | N116: Fajoles | O116: FR | P116: FR | Q116: FR | R116: 07 85 60 40 01 | T116: estherfouchard@outlook.fr | X116: =CONCATENATE(C116," ",D116) -> Fouchard Ester | AA116: =Z116*2% -> 0 | AB116: =AA116-AA116*30% -> 0 | AC116: 100 | AD116: =AC116*2% -> 2 | AE116: =AD116-AD116*30% -> 1.4 | AF116: 100 | AG116: =AF116*1.57% -> 1.57 | AH116: =AG116-AG116*30% -> 1.099
A117: ICEA-352 | B117: man | C117: Fouchard | D117: Samuel | F117: 1996-03-09 | G117: Toulouse | H117: person | K117: fr | L117: Les Fieux Nords | M117: 46300 | N117: Fajoles | O117: FR | P117: FR | Q117: FR | R117: 06 31 10 79 95 | T117: to-a@hotmail.fr | X117: =CONCATENATE(C117," ",D117) -> Fouchard Samuel | AA117: =Z117*2% -> 0 | AB117: =AA117-AA117*30% -> 0 | AC117: 100 | AD117: =AC117*2% -> 2 | AE117: =AD117-AD117*30% -> 1.4 | AF117: 100 | AG117: =AF117*1.57% -> 1.57 | AH117: =AG117-AG117*30% -> 1.099
A118: ICEA-422 | B118: man | C118: Galinier | D118: Dominique | F118: 1967-04-26 | G118: Lavelanet | H118: person | K118: fr | L118: Résidence les Ormes, BatF5, Appt N°66, Avenue Salvador Allende | M118: 31320 | N118: Castanet Tolosan | O118: FR | P118: FR | Q118: FR | R118: 635070700 | T118: dominique.galinier@airbus.com | X118: =CONCATENATE(C118," ",D118) -> Galinier Dominique | AA118: =Z118*2% -> 0 | AB118: =AA118-AA118*30% -> 0 | AD118: =AC118*2% -> 0 | AE118: =AD118-AD118*30% -> 0 | AF118: 500 | AG118: =AF118*1.57% -> 7.85 | AH118: =AG118-AG118*30% -> 5.495
A119: ICEA-50 | B119: man | C119: Galinier | D119: Michel | F119: 1957-09-14 | G119: Mazamet (81) | H119: person | K119: fr | L119: 9 ch de la fontaine St Sernin | M119: 31670 | N119: Labège | O119: FR | P119: FR | Q119: FR | R119: 06 07 14 63 26 | T119: galiniermichel31@gmail.com | X119: =CONCATENATE(C119," ",D119) -> Galinier Michel | Z119: 500 | AA119: =Z119*2% -> 10 | AB119: =AA119-AA119*30% -> 7 | AC119: 500 | AD119: =AC119*2% -> 10 | AE119: =AD119-AD119*30% -> 7 | AF119: 500 | AG119: =AF119*1.57% -> 7.85 | AH119: =AG119-AG119*30% -> 5.495
A120: ICEA-172 | B120: woman | C120: GAMBIER | D120: Hélène | F120: 1992-11-04 | G120: Toulouse | H120: person | K120: fr | L120: 79 Rue du Taur | M120: 31000 | N120: Toulouse | O120: FR | P120: FR | Q120: FR | R120: +337 81 78 72 90 | T120: hlne.gambier@gmail.com | U120: GAMBIER HELENE | V120: FR7642559100000401731461487 | W120: CCOPFRPPXXX | X120: =CONCATENATE(C120," ",D120) -> GAMBIER Hélène | Z120: 2000 | AA120: =Z120*2% -> 40 | AB120: =AA120-AA120*30% -> 28 | AC120: 2000 | AD120: =AC120*2% -> 40 | AE120: =AD120-AD120*30% -> 28 | AF120: 2000 | AG120: =AF120*1.57% -> 31.4 | AH120: =AG120-AG120*30% -> 21.98 | AI120: =AB120+AE120+AH120 -> 77.98 | AJ120: =CONCATENATE("2019/",'cooperators-41'!AB120,"Euros-2020/",'cooperators-41'!AE120,"Euros-2022/",'cooperators-41'!AH120,"Euros") -> 2019/28Euros-2020/28Euros-2022/21,98Euros
A121: ICEA-169 | B121: man | C121: GAMBIER | D121: yves | E121: GAMBIER | F121: 1961-08-26 | G121: Paris | H121: person | K121: fr | L121: 11 chemin de picotalen | M121: 11400 | N121: fendeille | O121: FR | P121: FR | Q121: FR | R121: 06 73 14 84 59 | T121: gambier.yves@gmail.com | X121: =CONCATENATE(C121," ",D121) -> GAMBIER yves | Z121: 1000 | AA121: =Z121*2% -> 20 | AB121: =AA121-AA121*30% -> 14 | AC121: 1000 | AD121: =AC121*2% -> 20 | AE121: =AD121-AD121*30% -> 14 | AF121: 1000 | AG121: =AF121*1.57% -> 15.7 | AH121: =AG121-AG121*30% -> 10.99
A122: ICEA-377 | B122: man | C122: Gardette | D122: Elouan | F122: 2021-07-31 | G122: Oslo( Norvège) | H122: gardian | K122: fr | L122: 61d - Schweigaards gate | M122: 656 | N122: Oslo | O122: NO | P122: NO | Q122: FR | R122: 00 4746542012 | T122: marion.gardette@gmail.com | U122: Marion Gardette | V122: NO9381601656833 | W122: DABANO22 | X122: =CONCATENATE(C122," ",D122) -> Gardette Elouan | AA122: =Z122*2% -> 0 | AB122: =AA122-AA122*30% -> 0 | AD122: =AC122*2% -> 0 | AE122: =AD122-AD122*30% -> 0 | AF122: 200 | AG122: =AF122*1.57% -> 3.14 | AH122: =AG122-AG122*30% -> 2.198 | AI122: =AB122+AE122+AH122 -> 2.198 | AJ122: =CONCATENATE("2019/",'cooperators-41'!AB122,"Euros-2020/",'cooperators-41'!AE122,"Euros-2022/",'cooperators-41'!AH122,"Euros") -> 2019/0Euros-2020/0Euros-2022/2,198Euros
A123: ICEA-31 | B123: man | C123: Gardette | D123: Laurent | F123: 1980-03-02 | G123: Ste Foy les Lyon (69) | H123: person | K123: fr | L123: 21 Rue Bigot - appt 201 batD | M123: 33000 | N123: Bordeaux | O123: FR | P123: FR | Q123: FR | R123: +3384 14 31 73 | T123: laurent.gardette@gmail.com | U123: Gardette | V123: FR7610907000011201969390978 | W123: CCBPFRPPBDX | X123: =CONCATENATE(C123," ",D123) -> Gardette Laurent | Z123: 500 | AA123: =Z123*2% -> 10 | AB123: =AA123-AA123*30% -> 7 | AC123: 500 | AD123: =AC123*2% -> 10 | AE123: =AD123-AD123*30% -> 7 | AF123: 500 | AG123: =AF123*1.57% -> 7.85 | AH123: =AG123-AG123*30% -> 5.495 | AI123: =AB123+AE123+AH123 -> 19.495 | AJ123: =CONCATENATE("2019/",'cooperators-41'!AB123,"Euros-2020/",'cooperators-41'!AE123,"Euros-2022/",'cooperators-41'!AH123,"Euros") -> 2019/7Euros-2020/7Euros-2022/5,495Euros
A124: ICEA-30 | B124: woman | C124: Gardette | D124: Marion | F124: 1982-11-30 | G124: Bron (69) | H124: person | K124: fr | L124: 61 d - Schweigaards gate | M124: 656 | N124: Oslo | O124: NO | P124: NO | Q124: FR | R124: 33746542012 | T124: marion.gardette@gmail.com | U124: Marion Gardette | V124: NO9381601656833 | W124: DABANO22 | X124: =CONCATENATE(C124," ",D124) -> Gardette Marion | Z124: 500 | AA124: =Z124*2% -> 10 | AB124: =AA124-AA124*30% -> 7 | AC124: 500 | AD124: =AC124*2% -> 10 | AE124: =AD124-AD124*30% -> 7 | AF124: 500 | AG124: =AF124*1.57% -> 7.85 | AH124: =AG124-AG124*30% -> 5.495 | AI124: =AB124+AE124+AH124 -> 19.495 | AJ124: =CONCATENATE("2019/",'cooperators-41'!AB124,"Euros-2020/",'cooperators-41'!AE124,"Euros-2022/",'cooperators-41'!AH124,"Euros") -> 2019/7Euros-2020/7Euros-2022/5,495Euros
A125: ICEA-208 | B125: woman | C125: Gardies | D125: Valérie | F125: 1971-07-13 | G125: Revel | H125: person | K125: fr | L125: 6 allée du Pas de l'escalette | M125: 31750 | N125: Escalquens | O125: FR | P125: FR | Q125: FR | R125: 06 99 08 51 12 | T125: valgardies@orange.fr | X125: =CONCATENATE(C125," ",D125) -> Gardies Valérie | Z125: 100 | AA125: =Z125*2% -> 2 | AB125: =AA125-AA125*30% -> 1.4 | AC125: 100 | AD125: =AC125*2% -> 2 | AE125: =AD125-AD125*30% -> 1.4 | AF125: 100 | AG125: =AF125*1.57% -> 1.57 | AH125: =AG125-AG125*30% -> 1.099
A126: ICEA-92 | B126: man | C126: Gasc | D126: Jean-Patrice | F126: 1973-08-30 | G126: Montauban | H126: person | K126: fr | L126: 20 chemin de Caille | M126: 31750 | N126: Escalquens | O126: FR | P126: FR | Q126: FR | R126: 06 21 73 24 46 | T126: ln.jp@iCloud.com | X126: =CONCATENATE(C126," ",D126) -> Gasc Jean-Patrice | Z126: 100 | AA126: =Z126*2% -> 2 | AB126: =AA126-AA126*30% -> 1.4 | AC126: 100 | AD126: =AC126*2% -> 2 | AE126: =AD126-AD126*30% -> 1.4 | AF126: 100 | AG126: =AF126*1.57% -> 1.57 | AH126: =AG126-AG126*30% -> 1.099
A127: ICEA-29 | B127: woman | C127: Gaucher | D127: Mireille | E127: Delmas | F127: 1963-09-23 | G127: Chinon (37) | H127: person | K127: fr | L127: 9 chemin des maynardes | M127: 31670 | N127: Labège | O127: FR | P127: FR | Q127: FR | R127: +337 85 55 65 45 | T127: mireille.delmas31@orange.fr | U127: M et Mme DELMAS Pascal | V127: FR7613135000800424199894623 | W127: CEPAFRPP313 | X127: =CONCATENATE(C127," ",D127) -> Gaucher Mireille | Z127: 500 | AA127: =Z127*2% -> 10 | AB127: =AA127-AA127*30% -> 7 | AC127: 500 | AD127: =AC127*2% -> 10 | AE127: =AD127-AD127*30% -> 7 | AF127: 500 | AG127: =AF127*1.57% -> 7.85 | AH127: =AG127-AG127*30% -> 5.495 | AI127: =AB127+AE127+AH127 -> 19.495 | AJ127: =CONCATENATE("2019/",'cooperators-41'!AB127,"Euros-2020/",'cooperators-41'!AE127,"Euros-2022/",'cooperators-41'!AH127,"Euros") -> 2019/7Euros-2020/7Euros-2022/5,495Euros
A128: ICEA-151 | B128: woman | C128: GIBERT | D128: Léna | F128: 2012-07-17 | G128: TOULOUSE | H128: gardian | K128: fr | L128: 2044 route du lac, Roquefoulet | M128: 31560 | N128: MONTGEARD | O128: FR | P128: FR | Q128: FR | R128: 06 86 90 85 41 | T128: caillejerome@yahoo.fr | X128: =CONCATENATE(C128," ",D128) -> GIBERT Léna | Z128: 50 | AA128: =Z128*2% -> 1 | AB128: =AA128-AA128*30% -> 0.7 | AC128: 50 | AD128: =AC128*2% -> 1 | AE128: =AD128-AD128*30% -> 0.7 | AF128: 50 | AG128: =AF128*1.57% -> 0.785 | AH128: =AG128-AG128*30% -> 0.5495
A129: ICEA-438 | B129: man | C129: Gidenne | D129: Thierry | F129: 1959-12-25 | G129: Blois | H129: person | K129: fr | L129: 5 rue du colonel Gendreau | M129: 31320 | N129: Castanet-Tolosan | O129: FR | P129: FR | Q129: FR | R129: 33606543511 | T129: thierry.gidenne@neuf.fr | X129: =CONCATENATE(C129," ",D129) -> Gidenne Thierry | AA129: =Z129*2% -> 0 | AB129: =AA129-AA129*30% -> 0 | AD129: =AC129*2% -> 0 | AE129: =AD129-AD129*30% -> 0 | AF129: 200 | AG129: =AF129*1.57% -> 3.14 | AH129: =AG129-AG129*30% -> 2.198
A130: ICEA-197 | B130: woman | C130: Gilard | D130: Hélène | F130: 1944-07-24 | G130: St Giron | H130: person | K130: fr | L130: 4 Cheminement de Gabielle | M130: 31270 | N130: Cugnaux | O130: FR | P130: FR | Q130: FR | R130: 05 61 92 31 14 | T130: laurent.gilard@laposte.net | X130: =CONCATENATE(C130," ",D130) -> Gilard Hélène | Z130: 50 | AA130: =Z130*2% -> 1 | AB130: =AA130-AA130*30% -> 0.7 | AC130: 50 | AD130: =AC130*2% -> 1 | AE130: =AD130-AD130*30% -> 0.7 | AF130: 50 | AG130: =AF130*1.57% -> 0.785 | AH130: =AG130-AG130*30% -> 0.5495
A131: ICEA-74 | B131: woman | C131: Gimberede | D131: Pierrette | E131: Bioulez | F131: 1942-05-10 | G131: Toulouse (31) | H131: person | K131: fr | L131: 7 rue des Ménéstrels | M131: 31670 | N131: Labège | O131: FR | P131: FR | Q131: FR | R131: 05 62 24 44 83 | T131: bioulez.p@gmail.com | X131: =CONCATENATE(C131," ",D131) -> Gimberede Pierrette | Z131: 50 | AA131: =Z131*2% -> 1 | AB131: =AA131-AA131*30% -> 0.7 | AC131: 50 | AD131: =AC131*2% -> 1 | AE131: =AD131-AD131*30% -> 0.7 | AF131: 50 | AG131: =AF131*1.57% -> 0.785 | AH131: =AG131-AG131*30% -> 0.5495
A132: ICEA-182 | B132: man | C132: GIMENEZ | D132: Jean-Louis | E132: . | F132: 1958-08-15 | G132: Oran | H132: person | K132: fr | L132: 3 allée Moise Maimonide Maison n°7 | M132: 31560 | N132: NAILLOUX | O132: FR | P132: FR | Q132: FR | R132: 06 81 24 00 33 | T132: jlgimenez@orange.fr | X132: =CONCATENATE(C132," ",D132) -> GIMENEZ Jean-Louis | Z132: 100 | AA132: =Z132*2% -> 2 | AB132: =AA132-AA132*30% -> 1.4 | AC132: 100 | AD132: =AC132*2% -> 2 | AE132: =AD132-AD132*30% -> 1.4 | AF132: 100 | AG132: =AF132*1.57% -> 1.57 | AH132: =AG132-AG132*30% -> 1.099
A133: ICEA-62 | B133: woman | C133: Gimenez | D133: Marie Thérese | F133: 1959-07-12 | G133: Oran | H133: person | K133: fr | L133: 95 avenue Tolosane | M133: 31520 | N133: Ramonville St Agne | O133: FR | P133: FR | Q133: FR | R133: +3381 36 30 48 | T133: mgetoile@gmail.com | U133: MT GIMENEZ | V133: FR1020041010160292808L03755 | W133: PSSTFRPPTOU | X133: =CONCATENATE(C133," ",D133) -> Gimenez Marie Thérese | Z133: 1500 | AA133: =Z133*2% -> 30 | AB133: =AA133-AA133*30% -> 21 | AC133: 1500 | AD133: =AC133*2% -> 30 | AE133: =AD133-AD133*30% -> 21 | AF133: 1500 | AG133: =AF133*1.57% -> 23.55 | AH133: =AG133-AG133*30% -> 16.485 | AI133: =AB133+AE133+AH133 -> 58.485 | AJ133: =CONCATENATE("2019/",'cooperators-41'!AB133,"Euros-2020/",'cooperators-41'!AE133,"Euros-2022/",'cooperators-41'!AH133,"Euros") -> 2019/21Euros-2020/21Euros-2022/16,485Euros
A134: ICEA-181 | B134: man | C134: GIMENEZ | D134: Philippe | E134: . | F134: 1965-08-04 | G134: Toulouse | H134: person | K134: fr | L134: 646 Avenue des Plantiers | M134: 6700 | N134: SaintLaurentduVar | O134: FR | P134: FR | Q134: FR | R134: 06 17 23 63 30 | T134: gim_phil@yahoo.fr | X134: =CONCATENATE(C134," ",D134) -> GIMENEZ Philippe | Z134: 100 | AA134: =Z134*2% -> 2 | AB134: =AA134-AA134*30% -> 1.4 | AC134: 100 | AD134: =AC134*2% -> 2 | AE134: =AD134-AD134*30% -> 1.4 | AF134: 100 | AG134: =AF134*1.57% -> 1.57 | AH134: =AG134-AG134*30% -> 1.099
A135: ICEA-34 | B135: woman | C135: Glain | D135: Brigitte | F135: 1958-10-14 | G135: Paris 15° | H135: person | K135: fr | L135: 5, rue Moulin Guillaume | M135: 31450 | N135: Donneville | O135: FR | P135: FR | Q135: FR | R135: 06 79 51 65 78 | T135: glainbrigitte@gmail.com | X135: =CONCATENATE(C135," ",D135) -> Glain Brigitte | Z135: 500 | AA135: =Z135*2% -> 10 | AB135: =AA135-AA135*30% -> 7 | AC135: 500 | AD135: =AC135*2% -> 10 | AE135: =AD135-AD135*30% -> 7 | AF135: 500 | AG135: =AF135*1.57% -> 7.85 | AH135: =AG135-AG135*30% -> 5.495
A136: ICEA-57 | B136: man | C136: Gloriès | D136: Bernard | F136: 1960-03-24 | G136: Mazamet (81) | H136: person | K136: fr | L136: 11 rue des Pyrténées | M136: 31670 | N136: Labège | O136: FR | P136: FR | Q136: FR | R136: 06 73 28 20 99 | T136: bernard.glories@gmail.com | X136: =CONCATENATE(C136," ",D136) -> Gloriès Bernard | Z136: 500 | AA136: =Z136*2% -> 10 | AB136: =AA136-AA136*30% -> 7 | AC136: 500 | AD136: =AC136*2% -> 10 | AE136: =AD136-AD136*30% -> 7 | AF136: 500 | AG136: =AF136*1.57% -> 7.85 | AH136: =AG136-AG136*30% -> 5.495
A137: ICEA-67 | B137: woman | C137: Gomart-Massip | D137: Martine | E137: Depaux | F137: 1954-07-29 | G137: Carbonne(31) | H137: person | K137: fr | L137: 5 ch du Val | M137: 31670 | N137: Labège | O137: FR | P137: FR | Q137: FR | R137: +3376 76 60 63 | T137: martine.depaux31@gmail.com | U137: DEPAUX JM OU MME | V137: FR7610268025861058240040090 | W137: COURFR2T | X137: =CONCATENATE(C137," ",D137) -> Gomart-Massip Martine | Z137: 100 | AA137: =Z137*2% -> 2 | AB137: =AA137-AA137*30% -> 1.4 | AC137: 100 | AD137: =AC137*2% -> 2 | AE137: =AD137-AD137*30% -> 1.4 | AF137: 100 | AG137: =AF137*1.57% -> 1.57 | AH137: =AG137-AG137*30% -> 1.099 | AI137: =AB137+AE137+AH137 -> 3.899 | AJ137: =CONCATENATE("2019/",'cooperators-41'!AB137,"Euros-2020/",'cooperators-41'!AE137,"Euros-2022/",'cooperators-41'!AH137,"Euros") -> 2019/1,4Euros-2020/1,4Euros-2022/1,099Euros
A138: ICEA-360 | B138: man | C138: Goussaud | D138: Fabrice | E138: . | F138: 1971-05-15 | G138: Toulouse | H138: person | K138: fr | L138: 14 ch des acacias | M138: 31190 | N138: Auterive | O138: FR | P138: FR | Q138: FR | R138: 06 23 46 03 88 | T138: fabricegoussaud@orange.fr | X138: =CONCATENATE(C138," ",D138) -> Goussaud Fabrice | AA138: =Z138*2% -> 0 | AB138: =AA138-AA138*30% -> 0 | AC138: 200 | AD138: =AC138*2% -> 4 | AE138: =AD138-AD138*30% -> 2.8 | AF138: 200 | AG138: =AF138*1.57% -> 3.14 | AH138: =AG138-AG138*30% -> 2.198
A139: ICEA-429 | B139: man | C139: GREBILLE | D139: BRUNO | F139: 1960-01-30 | G139: Boulogne Billancourt | H139: person | K139: fr | L139: 355 CHEMIN DE TULLE | M139: 31810 | N139: CLERMONT LE FORT | O139: FR | P139: FR | Q139: FR | R139: 33674521613 | S139: 33561084889 | T139: f.grebille@gmail.com | V139: NULL | X139: =CONCATENATE(C139," ",D139) -> GREBILLE BRUNO | AA139: =Z139*2% -> 0 | AB139: =AA139-AA139*30% -> 0 | AD139: =AC139*2% -> 0 | AE139: =AD139-AD139*30% -> 0 | AF139: 500 | AG139: =AF139*1.57% -> 7.85 | AH139: =AG139-AG139*30% -> 5.495
A140: ICEA-248 | B140: woman | C140: Grivart | D140: Anaïck | F140: 1993-04-10 | G140: Toulouse | H140: person | K140: fr | L140: 13 chemin de la bosse | M140: 31450 | N140: Ayguesvives | O140: FR | P140: FR | Q140: FR | R140: 06 82 23 71 16 | T140: anaick.grivart@gmail.com | X140: =CONCATENATE(C140," ",D140) -> Grivart Anaïck | Z140: 100 | AA140: =Z140*2% -> 2 | AB140: =AA140-AA140*30% -> 1.4 | AC140: 300 | AD140: =AC140*2% -> 6 | AE140: =AD140-AD140*30% -> 4.2 | AF140: 400 | AG140: =AF140*1.57% -> 6.28 | AH140: =AG140-AG140*30% -> 4.396
A141: ICEA-250 | B141: man | C141: Grivart | D141: Joan | F141: 2002-03-23 | G141: Toulouse | H141: person | K141: fr | L141: 13 chemin de la bosse | M141: 31450 | N141: Ayguesvives | O141: FR | P141: FR | Q141: FR | R141: 07 83 70 15 17 | T141: jo.grivart@gmail.com | X141: =CONCATENATE(C141," ",D141) -> Grivart Joan | Z141: 100 | AA141: =Z141*2% -> 2 | AB141: =AA141-AA141*30% -> 1.4 | AC141: 300 | AD141: =AC141*2% -> 6 | AE141: =AD141-AD141*30% -> 4.2 | AF141: 400 | AG141: =AF141*1.57% -> 6.28 | AH141: =AG141-AG141*30% -> 4.396
A142: ICEA-249 | B142: woman | C142: Grivart | D142: Maïlis | F142: 1995-07-26 | G142: Toulouse | H142: person | K142: fr | L142: 13 chemin de la bosse | M142: 31450 | N142: Ayguesvives | O142: FR | P142: FR | Q142: FR | R142: 07 82 06 92 81 | T142: philippe.grivart@gmail.com | X142: =CONCATENATE(C142," ",D142) -> Grivart Maïlis | Z142: 100 | AA142: =Z142*2% -> 2 | AB142: =AA142-AA142*30% -> 1.4 | AC142: 300 | AD142: =AC142*2% -> 6 | AE142: =AD142-AD142*30% -> 4.2 | AF142: 400 | AG142: =AF142*1.57% -> 6.28 | AH142: =AG142-AG142*30% -> 4.396
A143: ICEA-155 | B143: man | C143: GRIVART | D143: Philippe | F143: 1962-06-26 | G143: MEKNES (MAROC) | H143: person | K143: fr | L143: 13 chemin de la bosse | M143: 31450 | N143: AYGUESVIVES | O143: FR | P143: FR | Q143: FR | R143: 07 82 06 92 81 | T143: philippe.grivart@gmail.com | X143: =CONCATENATE(C143," ",D143) -> GRIVART Philippe | Z143: 500 | AA143: =Z143*2% -> 10 | AB143: =AA143-AA143*30% -> 7 | AC143: 500 | AD143: =AC143*2% -> 10 | AE143: =AD143-AD143*30% -> 7 | AF143: 500 | AG143: =AF143*1.57% -> 7.85 | AH143: =AG143-AG143*30% -> 5.495
A144: ICEA-179 | B144: woman | C144: Guillot | D144: Christine | E144: Isnard | F144: 1947-11-21 | G144: Villeurbanne | H144: person | K144: fr | L144: 232 Avenue Paul Santy | M144: 69008 | N144: Lyon | O144: FR | P144: FR | Q144: FR | R144: 06 89 74 20 99 | T144: christine.isnard.g@free.fr | X144: =CONCATENATE(C144," ",D144) -> Guillot Christine | Z144: 500 | AA144: =Z144*2% -> 10 | AB144: =AA144-AA144*30% -> 7 | AC144: 500 | AD144: =AC144*2% -> 10 | AE144: =AD144-AD144*30% -> 7 | AF144: 500 | AG144: =AF144*1.57% -> 7.85 | AH144: =AG144-AG144*30% -> 5.495
A145: ICEA-214 | B145: man | C145: Haydont | D145: Célian | E145: Célian Haydont | F145: 1999-08-15 | G145: Chatenay-Malabry (92) | H145: person | K145: fr | L145: 12 allée de l'Europe | M145: 92110 | N145: Clichy | O145: FR | P145: FR | Q145: FR | R145: 07 68 30 14 23 | T145: celianhaydont@gmail.com | X145: =CONCATENATE(C145," ",D145) -> Haydont Célian | Z145: 500 | AA145: =Z145*2% -> 10 | AB145: =AA145-AA145*30% -> 7 | AC145: 500 | AD145: =AC145*2% -> 10 | AE145: =AD145-AD145*30% -> 7 | AF145: 500 | AG145: =AF145*1.57% -> 7.85 | AH145: =AG145-AG145*30% -> 5.495
A146: ICEA-323 | B146: man | C146: Haydont | D146: Christophe | F146: 1967-06-26 | G146: NANTERRE | H146: person | K146: fr | L146: 4 place Clémence Isaure | M146: 31320 | N146: CastanetTolosan | O146: FR | P146: FR | Q146: FR | R146: 06 87 12 61 13 | T146: chaydont@orange.fr | X146: =CONCATENATE(C146," ",D146) -> Haydont Christophe | AA146: =Z146*2% -> 0 | AB146: =AA146-AA146*30% -> 0 | AC146: 500 | AD146: =AC146*2% -> 10 | AE146: =AD146-AD146*30% -> 7 | AF146: 500 | AG146: =AF146*1.57% -> 7.85 | AH146: =AG146-AG146*30% -> 5.495
A147: ICEA-180 | B147: man | C147: Haydont | D147: Emmanuel | F147: 1968-05-26 | G147: Nanterre | H147: person | K147: fr | L147: 26 rue du petit prince | M147: 31320 | N147: Castanet Tolosan | O147: FR | P147: FR | Q147: FR | R147: +33651 65 32 34 | T147: manu@haydont.net | X147: =CONCATENATE(C147," ",D147) -> Haydont Emmanuel | Z147: 8500 | AA147: =Z147*2% -> 170 | AB147: =AA147-AA147*30% -> 119 | AC147: 8500 | AD147: =AC147*2% -> 170 | AE147: =AD147-AD147*30% -> 119 | AF147: 8500 | AG147: =AF147*1.57% -> 133.45 | AH147: =AG147-AG147*30% -> 93.415
A148: ICEA-213 | B148: woman | C148: Haydont | D148: Flavie | F148: 2001-09-03 | G148: Meulan (78) | H148: person | K148: fr | L148: 26 RUE DU PETIT PRINCE | M148: 31320 | N148: CASTANET TOLOSAN | O148: FR | P148: FR | Q148: FR | R148: +3381 55 42 89 | T148: claire@haydont.net | X148: =CONCATENATE(C148," ",D148) -> Haydont Flavie | Z148: 500 | AA148: =Z148*2% -> 10 | AB148: =AA148-AA148*30% -> 7 | AC148: 500 | AD148: =AC148*2% -> 10 | AE148: =AD148-AD148*30% -> 7 | AF148: 500 | AG148: =AF148*1.57% -> 7.85 | AH148: =AG148-AG148*30% -> 5.495
A149: ICEA-230 | B149: man | C149: Haydont | D149: Mathias | E149: . | F149: 1971-06-25 | G149: Nanterre | H149: person | K149: fr | L149: 14 route d'Odars | M149: 31570 | N149: PRESERVILLE | O149: FR | P149: FR | Q149: FR | R149: +3381 02 60 60 | T149: mhaydont@orange.fr | U149: HAYDONT MATHIAS | V149: FR7630004021800000021093566 | W149: BNPAFR PPXXX | X149: =CONCATENATE(C149," ",D149) -> Haydont Mathias | Z149: 500 | AA149: =Z149*2% -> 10 | AB149: =AA149-AA149*30% -> 7 | AC149: 500 | AD149: =AC149*2% -> 10 | AE149: =AD149-AD149*30% -> 7 | AF149: 500 | AG149: =AF149*1.57% -> 7.85 | AH149: =AG149-AG149*30% -> 5.495 | AI149: =AB149+AE149+AH149 -> 19.495 | AJ149: =CONCATENATE("2019/",'cooperators-41'!AB149,"Euros-2020/",'cooperators-41'!AE149,"Euros-2022/",'cooperators-41'!AH149,"Euros") -> 2019/7Euros-2020/7Euros-2022/5,495Euros
A150: ICEA-236 | B150: woman | C150: Hayzoun | D150: Karima | E150: Coppola | F150: 1969-06-19 | G150: Rabat-Maroc | H150: person | K150: fr | L150: 7 imp des Romains | M150: 31320 | N150: Castanet Tolosan | O150: FR | P150: FR | Q150: FR | R150: 06 20 02 25 99 | T150: karimacoppola@gmail.com | X150: =CONCATENATE(C150," ",D150) -> Hayzoun Karima | Z150: 50 | AA150: =Z150*2% -> 1 | AB150: =AA150-AA150*30% -> 0.7 | AC150: 50 | AD150: =AC150*2% -> 1 | AE150: =AD150-AD150*30% -> 0.7 | AF150: 50 | AG150: =AF150*1.57% -> 0.785 | AH150: =AG150-AG150*30% -> 0.5495
A151: ICEA-279 | B151: man | C151: Hernandez | D151: Pedro | F151: 1974-08-25 | G151: Girone(Espagne) | H151: person | K151: fr | L151: 135 ch Salade Ponson | M151: 31400 | N151: Toulouse | O151: FR | P151: FR | Q151: FR | R151: +336 17 03 42 90 | T151: phernaca@yahoo.es | U151: HERNANDEZ PEDRO | V151: FR7613135000800424982482669 | W151: C E P A F R P P 3 1 3 | X151: =CONCATENATE(C151," ",D151) -> Hernandez Pedro | AA151: =Z151*2% -> 0 | AB151: =AA151-AA151*30% -> 0 | AC151: 100 | AD151: =AC151*2% -> 2 | AE151: =AD151-AD151*30% -> 1.4 | AF151: 100 | AG151: =AF151*1.57% -> 1.57 | AH151: =AG151-AG151*30% -> 1.099 | AI151: =AB151+AE151+AH151 -> 2.499 | AJ151: =CONCATENATE("2019/",'cooperators-41'!AB151,"Euros-2020/",'cooperators-41'!AE151,"Euros-2022/",'cooperators-41'!AH151,"Euros") -> 2019/0Euros-2020/1,4Euros-2022/1,099Euros
A152: ICEA-258 | B152: woman | C152: HERRY | D152: Nadine | E152: ADAM | F152: 1963-10-31 | G152: LESNEVEN (29) | H152: person | K152: fr | L152: 2 impasse du Restanc | M152: 31450 | N152: AYGUESVIVES | O152: FR | P152: FR | Q152: FR | R152: +336 82 68 74 87 | T152: nadine.adam@orange.fr | X152: =CONCATENATE(C152," ",D152) -> HERRY Nadine | Z152: 500 | AA152: =Z152*2% -> 10 | AB152: =AA152-AA152*30% -> 7 | AC152: 500 | AD152: =AC152*2% -> 10 | AE152: =AD152-AD152*30% -> 7 | AF152: 500 | AG152: =AF152*1.57% -> 7.85 | AH152: =AG152-AG152*30% -> 5.495
A153: ICEA-203 | B153: man | C153: Hévin | D153: Christophe | E153: . | F153: 1960-06-28 | G153: Pau (64) | H153: person | K153: fr | L153: 22 Marensac | M153: 31450 | N153: BELBERAUD | O153: FR | P153: FR | Q153: FR | R153: +3370 46 02 21 | T153: c.hevin@free.fr | U153: Christophe Hevin | V153: FR7613106005001192948610120 | W153: AGRIFRPP831 | X153: =CONCATENATE(C153," ",D153) -> Hévin Christophe | Z153: 1000 | AA153: =Z153*2% -> 20 | AB153: =AA153-AA153*30% -> 14 | AC153: 1000 | AD153: =AC153*2% -> 20 | AE153: =AD153-AD153*30% -> 14 | AF153: 1000 | AG153: =AF153*1.57% -> 15.7 | AH153: =AG153-AG153*30% -> 10.99 | AI153: =AB153+AE153+AH153 -> 38.99 | AJ153: =CONCATENATE("2019/",'cooperators-41'!AB153,"Euros-2020/",'cooperators-41'!AE153,"Euros-2022/",'cooperators-41'!AH153,"Euros") -> 2019/14Euros-2020/14Euros-2022/10,99Euros
A154: ICEA-225 | B154: man | C154: Hilaire | D154: Sebastien | F154: 1975-09-26 | G154: nancy | H154: person | K154: fr | L154: 26 rue de bourgogne | M154: 31130 | N154: balma | O154: FR | P154: FR | Q154: FR | R154: +33782 16 98 80 | T154: sebastien.hilaire@gmail.com | U154: Hilaire Sebastien | V154: FR7630056003660366009078905 | W154: CCFRFRPP | X154: =CONCATENATE(C154," ",D154) -> Hilaire Sebastien | Z154: 50 | AA154: =Z154*2% -> 1 | AB154: =AA154-AA154*30% -> 0.7 | AC154: 50 | AD154: =AC154*2% -> 1 | AE154: =AD154-AD154*30% -> 0.7 | AF154: 50 | AG154: =AF154*1.57% -> 0.785 | AH154: =AG154-AG154*30% -> 0.5495 | AI154: =AB154+AE154+AH154 -> 1.9495 | AJ154: =CONCATENATE("2019/",'cooperators-41'!AB154,"Euros-2020/",'cooperators-41'!AE154,"Euros-2022/",'cooperators-41'!AH154,"Euros") -> 2019/0,7Euros-2020/0,7Euros-2022/0,5495Euros
A155: ICEA-331 | B155: man | C155: HORION | D155: Clément | E155: . | F155: 2007-04-14 | G155: Toulouse | H155: gardian | K155: fr | L155: 10 rue des Muriers | M155: 31500 | N155: TOULOUSE | O155: FR | P155: FR | Q155: FR | T155: crp.web@hh.de | X155: =CONCATENATE(C155," ",D155) -> HORION Clément | AA155: =Z155*2% -> 0 | AB155: =AA155-AA155*30% -> 0 | AC155: 100 | AD155: =AC155*2% -> 2 | AE155: =AD155-AD155*30% -> 1.4 | AF155: 100 | AG155: =AF155*1.57% -> 1.57 | AH155: =AG155-AG155*30% -> 1.099
A156: ICEA-76 | B156: man | C156: Imbert-Pulgar | D156: Pauline | F156: 2003-12-28 | G156: Toulouse (31) | H156: person | K156: fr | L156: 6 av de Cocagne | M156: 31570 | N156: Lanta | O156: FR | P156: FR | Q156: FR | R156: 06 23 92 38 51 | T156: sandrine.thilpulgar71@gmail.com | X156: =CONCATENATE(C156," ",D156) -> Imbert-Pulgar Pauline | Z156: 500 | AA156: =Z156*2% -> 10 | AB156: =AA156-AA156*30% -> 7 | AC156: 500 | AD156: =AC156*2% -> 10 | AE156: =AD156-AD156*30% -> 7 | AF156: 500 | AG156: =AF156*1.57% -> 7.85 | AH156: =AG156-AG156*30% -> 5.495
A157: ICEA-135 | B157: woman | C157: Isman | D157: Monique | E157: Dardel | F157: 1958-11-07 | G157: Meknes- Maroc | H157: person | K157: fr | L157: 17 bis Ch Fontaine St Sernin | M157: 31670 | N157: Labège | O157: FR | P157: FR | Q157: FR | R157: 05 61 39 87 93 | T157: monique.dardel@free.fr | X157: =CONCATENATE(C157," ",D157) -> Isman Monique | Z157: 500 | AA157: =Z157*2% -> 10 | AB157: =AA157-AA157*30% -> 7 | AC157: 500 | AD157: =AC157*2% -> 10 | AE157: =AD157-AD157*30% -> 7 | AF157: 500 | AG157: =AF157*1.57% -> 7.85 | AH157: =AG157-AG157*30% -> 5.495
A158: ICEA-99 | B158: man | C158: Isnard | D158: Basile | F158: 2004-08-31 | G158: Toulouse | H158: gardian | K158: fr | L158: 25 ch de l'écluse | M158: 31320 | N158: Pechabou | O158: FR | P158: FR | Q158: FR | T158: ex.isnard@cegetel.net | X158: =CONCATENATE(C158," ",D158) -> Isnard Basile | Z158: 50 | AA158: =Z158*2% -> 1 | AB158: =AA158-AA158*30% -> 0.7 | AC158: 50 | AD158: =AC158*2% -> 1 | AE158: =AD158-AD158*30% -> 0.7 | AF158: 50 | AG158: =AF158*1.57% -> 0.785 | AH158: =AG158-AG158*30% -> 0.5495
A159: ICEA-103 | B159: man | C159: Isnard | D159: Guillaume | F159: 1978-06-21 | G159: Annecy | H159: person | K159: fr | L159: 51 avenue de l'hers | M159: 31450 | N159: Baziège | O159: FR | P159: FR | Q159: FR | R159: 06 29 52 58 39 | T159: isnard.gui@gmail.com | X159: =CONCATENATE(C159," ",D159) -> Isnard Guillaume | Z159: 50 | AA159: =Z159*2% -> 1 | AB159: =AA159-AA159*30% -> 0.7 | AC159: 50 | AD159: =AC159*2% -> 1 | AE159: =AD159-AD159*30% -> 0.7 | AF159: 50 | AG159: =AF159*1.57% -> 0.785 | AH159: =AG159-AG159*30% -> 0.5495
A160: ICEA-41 | B160: man | C160: Isnard | D160: Jean-Marc | F160: 1947-10-07 | G160: Lyon 7 eme | H160: person | K160: fr | L160: 232 Avenue Paul Santy | M160: 69008 | N160: Lyon | O160: FR | P160: FR | Q160: FR | R160: 06.81.97.38.84 | T160: jeanmarc.isnard@free.fr | X160: =CONCATENATE(C160," ",D160) -> Isnard Jean-Marc | Z160: 500 | AA160: =Z160*2% -> 10 | AB160: =AA160-AA160*30% -> 7 | AC160: 500 | AD160: =AC160*2% -> 10 | AE160: =AD160-AD160*30% -> 7 | AF160: 500 | AG160: =AF160*1.57% -> 7.85 | AH160: =AG160-AG160*30% -> 5.495
A161: ICEA-104 | B161: woman | C161: Isnard Laure | D161: Juliette | F161: 2009-06-13 | G161: Baie-Mahault | H161: gardian | K161: fr | L161: 51 avenue de l'hers | M161: 31450 | N161: Baziège | O161: FR | P161: FR | Q161: FR | T161: isnard.gui@gmail.com | X161: =CONCATENATE(C161," ",D161) -> Isnard Laure Juliette | Z161: 50 | AA161: =Z161*2% -> 1 | AB161: =AA161-AA161*30% -> 0.7 | AC161: 50 | AD161: =AC161*2% -> 1 | AE161: =AD161-AD161*30% -> 0.7 | AF161: 50 | AG161: =AF161*1.57% -> 0.785 | AH161: =AG161-AG161*30% -> 0.5495
A162: ICEA-106 | B162: woman | C162: Isnard Laure | D162: Sabrina | F162: 1978-06-13 | G162: Beziers | H162: person | K162: fr | L162: 51 avenue de l'hers | M162: 31450 | N162: Baziège | O162: FR | P162: FR | Q162: FR | R162: 07 62 32 16 00 | T162: isnard.gui@gmail.com | X162: =CONCATENATE(C162," ",D162) -> Isnard Laure Sabrina | Z162: 50 | AA162: =Z162*2% -> 1 | AB162: =AA162-AA162*30% -> 0.7 | AC162: 50 | AD162: =AC162*2% -> 1 | AE162: =AD162-AD162*30% -> 0.7 | AF162: 50 | AG162: =AF162*1.57% -> 0.785 | AH162: =AG162-AG162*30% -> 0.5495
A163: ICEA-105 | B163: woman | C163: Isnard Laure | D163: Zoe | F163: 2012-01-27 | G163: Baie-Mahault | H163: gardian | K163: fr | L163: 51 avenue de l'hers | M163: 31450 | N163: Baziège | O163: FR | P163: FR | Q163: FR | T163: isnard.gui@gmail.com | X163: =CONCATENATE(C163," ",D163) -> Isnard Laure Zoe | Z163: 50 | AA163: =Z163*2% -> 1 | AB163: =AA163-AA163*30% -> 0.7 | AC163: 50 | AD163: =AC163*2% -> 1 | AE163: =AD163-AD163*30% -> 0.7 | AF163: 50 | AG163: =AF163*1.57% -> 0.785 | AH163: =AG163-AG163*30% -> 0.5495
A164: ICEA-101 | B164: man | C164: Isnard | D164: Merlin | F164: 2007-08-18 | G164: Toulouse | H164: gardian | K164: fr | L164: 25 ch de l'écluse | M164: 31320 | N164: Pechabou | O164: FR | P164: FR | Q164: FR | T164: ex.isnard@cegetel.net | X164: =CONCATENATE(C164," ",D164) -> Isnard Merlin | Z164: 50 | AA164: =Z164*2% -> 1 | AB164: =AA164-AA164*30% -> 0.7 | AC164: 50 | AD164: =AC164*2% -> 1 | AE164: =AD164-AD164*30% -> 0.7 | AF164: 50 | AG164: =AF164*1.57% -> 0.785 | AH164: =AG164-AG164*30% -> 0.5495
A165: ICEA-100 | B165: man | C165: Isnard | D165: Paul | F165: 2001-12-26 | G165: Montreal CA | H165: person | K165: fr | L165: 25 ch de l'écluse | M165: 31320 | N165: Pechabou | O165: FR | P165: FR | Q165: FR | T165: ex.isnard@cegetel.net | X165: =CONCATENATE(C165," ",D165) -> Isnard Paul | Z165: 50 | AA165: =Z165*2% -> 1 | AB165: =AA165-AA165*30% -> 0.7 | AC165: 50 | AD165: =AC165*2% -> 1 | AE165: =AD165-AD165*30% -> 0.7 | AF165: 50 | AG165: =AF165*1.57% -> 0.785 | AH165: =AG165-AG165*30% -> 0.5495
A166: ICEA-97 | B166: man | C166: Isnard | D166: Xavier | F166: 1973-05-17 | G166: Bron (69) | H166: person | K166: fr | L166: 25 ch de l'écluse | M166: 31320 | N166: Pechabou | O166: FR | P166: FR | Q166: FR | R166: 06 33 60 15 22 | T166: ex.isnard@cegetel.net | X166: =CONCATENATE(C166," ",D166) -> Isnard Xavier | Z166: 50 | AA166: =Z166*2% -> 1 | AB166: =AA166-AA166*30% -> 0.7 | AC166: 50 | AD166: =AC166*2% -> 1 | AE166: =AD166-AD166*30% -> 0.7 | AF166: 50 | AG166: =AF166*1.57% -> 0.785 | AH166: =AG166-AG166*30% -> 0.5495
A167: ICEA-435 | B167: woman | C167: khalkhal | D167: Mùalika | F167: 1966-04-19 | G167: Pézenas | H167: person | K167: fr | L167: 515 chemin de roqueville | M167: 31450 | N167: Issus | O167: FR | P167: FR | Q167: FR | R167: 33626421351 | T167: le-campestre@orange.fr | X167: =CONCATENATE(C167," ",D167) -> khalkhal Mùalika | AA167: =Z167*2% -> 0 | AB167: =AA167-AA167*30% -> 0 | AD167: =AC167*2% -> 0 | AE167: =AD167-AD167*30% -> 0 | AF167: 50 | AG167: =AF167*1.57% -> 0.785 | AH167: =AG167-AG167*30% -> 0.5495
A168: ICEA-116 | B168: man | C168: Klopp | D168: Christophe | F168: 1966-12-25 | G168: Sarreguemines(57) | H168: person | K168: fr | L168: 1 rue simone de beauvoir | M168: 31320 | N168: Castanet Tolosan | O168: FR | P168: FR | Q168: FR | R168: 05 61 75 18 37 | T168: christophe.klopp@free.fr | X168: =CONCATENATE(C168," ",D168) -> Klopp Christophe | Z168: 500 | AA168: =Z168*2% -> 10 | AB168: =AA168-AA168*30% -> 7 | AC168: 500 | AD168: =AC168*2% -> 10 | AE168: =AD168-AD168*30% -> 7 | AF168: 500 | AG168: =AF168*1.57% -> 7.85 | AH168: =AG168-AG168*30% -> 5.495
A169: ICEA-277 | B169: man | C169: Knödlseder | D169: Jürgen | E169: . | F169: 1967-02-26 | G169: Munich (Allemagne) | H169: person | K169: fr | L169: 7 allée des Jonquilles | M169: 31520 | N169: Ramonville | O169: FR | P169: FR | Q169: FR | R169: +336 24 36 25 47 | T169: jurgen.knodlseder@gmail.com | U169: KNODLSEDER JURGEN | V169: FR7617807000130131936093523 | W169: CCBPFRPPTLS | X169: =CONCATENATE(C169," ",D169) -> Knödlseder Jürgen | AA169: =Z169*2% -> 0 | AB169: =AA169-AA169*30% -> 0 | AC169: 1000 | AD169: =AC169*2% -> 20 | AE169: =AD169-AD169*30% -> 14 | AF169: 1000 | AG169: =AF169*1.57% -> 15.7 | AH169: =AG169-AG169*30% -> 10.99 | AI169: =AB169+AE169+AH169 -> 24.99 | AJ169: =CONCATENATE("2019/",'cooperators-41'!AB169,"Euros-2020/",'cooperators-41'!AE169,"Euros-2022/",'cooperators-41'!AH169,"Euros") -> 2019/0Euros-2020/14Euros-2022/10,99Euros
A170: ICEA-342 | B170: man | C170: Knödlseder | D170: Simon | E170: . | F170: 2007-06-28 | G170: Toulouse | H170: gardian | K170: fr | L170: 7 allée des Jonquilles | M170: 31520 | N170: Ramonville | O170: FR | P170: FR | Q170: FR | R170: +337 67 76 88 14 | T170: simon.kn@icloud.com | U170: KNODLSEDER SIMON | V170: FR7613135000800442773454623 | W170: CEPAFRPP313 | X170: =CONCATENATE(C170," ",D170) -> Knödlseder Simon | AA170: =Z170*2% -> 0 | AB170: =AA170-AA170*30% -> 0 | AC170: 500 | AD170: =AC170*2% -> 10 | AE170: =AD170-AD170*30% -> 7 | AF170: 500 | AG170: =AF170*1.57% -> 7.85 | AH170: =AG170-AG170*30% -> 5.495 | AI170: =AB170+AE170+AH170 -> 12.495 | AJ170: =CONCATENATE("2019/",'cooperators-41'!AB170,"Euros-2020/",'cooperators-41'!AE170,"Euros-2022/",'cooperators-41'!AH170,"Euros") -> 2019/0Euros-2020/7Euros-2022/5,495Euros
A171: ICEA-343 | B171: man | C171: Knödlseder | D171: Thomas | E171: . | F171: 2010-05-03 | G171: Toulouse | H171: gardian | K171: fr | L171: 7 allée des Jonquilles | M171: 31520 | N171: Ramonville | O171: FR | P171: FR | Q171: FR | T171: jurgen.knodlseder@gmail.com | U171: KNODLSEDER JURGEN | V171: FR7617807000130131936093523 | W171: CCBPFRPPTLS | X171: =CONCATENATE(C171," ",D171) -> Knödlseder Thomas | AA171: =Z171*2% -> 0 | AB171: =AA171-AA171*30% -> 0 | AC171: 500 | AD171: =AC171*2% -> 10 | AE171: =AD171-AD171*30% -> 7 | AF171: 500 | AG171: =AF171*1.57% -> 7.85 | AH171: =AG171-AG171*30% -> 5.495 | AI171: =AB171+AE171+AH171 -> 12.495 | AJ171: =CONCATENATE("2019/",'cooperators-41'!AB171,"Euros-2020/",'cooperators-41'!AE171,"Euros-2022/",'cooperators-41'!AH171,"Euros") -> 2019/0Euros-2020/7Euros-2022/5,495Euros
A172: ICEA-159 | B172: man | C172: KOECHLIN | D172: JULIEN | F172: 1982-09-28 | G172: NICE | H172: person | K172: fr | L172: 31 rue Lobineau | M172: 35000 | N172: RENNES | O172: FR | P172: FR | Q172: FR | R172: 06 19 90 34 19 | T172: julien.koechlin@free.fr | X172: =CONCATENATE(C172," ",D172) -> KOECHLIN JULIEN | Z172: 200 | AA172: =Z172*2% -> 4 | AB172: =AA172-AA172*30% -> 2.8 | AC172: 200 | AD172: =AC172*2% -> 4 | AE172: =AD172-AD172*30% -> 2.8 | AF172: 200 | AG172: =AF172*1.57% -> 3.14 | AH172: =AG172-AG172*30% -> 2.198
A173: ICEA-68 | B173: man | C173: Koechlin | D173: Laurent | F173: 1951-07-27 | G173: Paris | H173: person | K173: fr | L173: 244 Caminot del Basquet | M173: 31320 | N173: Aureville | O173: FR | P173: FR | Q173: FR | R173: 06 14 44 31 42 | T173: laurent.koechlin@free.fr | X173: =CONCATENATE(C173," ",D173) -> Koechlin Laurent | Z173: 100 | AA173: =Z173*2% -> 2 | AB173: =AA173-AA173*30% -> 1.4 | AC173: 100 | AD173: =AC173*2% -> 2 | AE173: =AD173-AD173*30% -> 1.4 | AF173: 100 | AG173: =AF173*1.57% -> 1.57 | AH173: =AG173-AG173*30% -> 1.099
A174: ICEA-313 | B174: woman | C174: Kosovskaia | D174: Oxana | E174: CONOR | F174: 1971-08-06 | G174: Khmelnitski | H174: person | K174: fr | L174: 13, domaine de Montbrun | M174: 31450 | N174: MONTRBUNLAURAGAS | O174: FR | P174: FR | Q174: FR | R174: 07 84 15 40 68 | T174: conor.bernard@orange.fr | X174: =CONCATENATE(C174," ",D174) -> Kosovskaia Oxana | AA174: =Z174*2% -> 0 | AB174: =AA174-AA174*30% -> 0 | AC174: 500 | AD174: =AC174*2% -> 10 | AE174: =AD174-AD174*30% -> 7 | AF174: 500 | AG174: =AF174*1.57% -> 7.85 | AH174: =AG174-AG174*30% -> 5.495
A175: ICEA-347 | B175: woman | C175: Laguens | D175: Henriette | E175: Surin | F175: 1952-01-18 | G175: Clermont Ferrand | H175: person | K175: fr | L175: 1400 ch de St Maurice | M175: 31810 | N175: Clermont Lefort | O175: FR | P175: FR | Q175: FR | R175: 06 15 37 14 00 | T175: ea.surin@yahoo.fr | X175: =CONCATENATE(C175," ",D175) -> Laguens Henriette | AA175: =Z175*2% -> 0 | AB175: =AA175-AA175*30% -> 0 | AC175: 500 | AD175: =AC175*2% -> 10 | AE175: =AD175-AD175*30% -> 7 | AF175: 500 | AG175: =AF175*1.57% -> 7.85 | AH175: =AG175-AG175*30% -> 5.495
A176: ICEA-03 | B176: woman | C176: Lahaye | D176: Béatrice | E176: Brousseau | F176: 1941-06-05 | G176: Biarritz (64) | H176: person | K176: fr | L176: 71, Avenue Louise Couderc | M176: 31670 | N176: Labège | O176: FR | P176: FR | Q176: FR | R176: 06 81 14 49 09 | T176: beatricebrousseau4@gmail.com | U176: Brousseau | V176: FR7613106005001803334010150 | W176: AGRIFRPP831 | X176: =CONCATENATE(C176," ",D176) -> Lahaye Béatrice | Z176: 400 | AA176: =Z176*2% -> 8 | AB176: =AA176-AA176*30% -> 5.6 | AC176: 500 | AD176: =AC176*2% -> 10 | AE176: =AD176-AD176*30% -> 7 | AF176: 500 | AG176: =AF176*1.57% -> 7.85 | AH176: =AG176-AG176*30% -> 5.495 | AI176: =AB176+AE176+AH176 -> 18.095 | AJ176: =CONCATENATE("2019/",'cooperators-41'!AB176,"Euros-2020/",'cooperators-41'!AE176,"Euros-2022/",'cooperators-41'!AH176,"Euros") -> 2019/5,6Euros-2020/7Euros-2022/5,495Euros
A177: ICEA-190 | B177: woman | C177: LAINE | D177: Lucie | E177: . | F177: 2001-04-10 | G177: BOURG LA REINE | H177: person | K177: fr | L177: 29 RUE DELMAS | M177: 31400 | N177: TOULOUSE | O177: FR | P177: FR | Q177: FR | R177: 06 03 53 41 88 | T177: laine.pierre@9online.fr | X177: =CONCATENATE(C177," ",D177) -> LAINE Lucie | Z177: 250 | AA177: =Z177*2% -> 5 | AB177: =AA177-AA177*30% -> 3.5 | AC177: 250 | AD177: =AC177*2% -> 5 | AE177: =AD177-AD177*30% -> 3.5 | AF177: 250 | AG177: =AF177*1.57% -> 3.925 | AH177: =AG177-AG177*30% -> 2.7475
A178: ICEA-189 | B178: man | C178: LAINE | D178: Pierre | E178: . | F178: 1972-02-23 | G178: ROUEN | H178: person | K178: fr | L178: 29 RUE DELMAS | M178: 31400 | N178: TOULOUSE | O178: FR | P178: FR | Q178: FR | R178: 06 03 53 41 88 | T178: laine.pierre@9online.fr | X178: =CONCATENATE(C178," ",D178) -> LAINE Pierre | Z178: 500 | AA178: =Z178*2% -> 10 | AB178: =AA178-AA178*30% -> 7 | AC178: 500 | AD178: =AC178*2% -> 10 | AE178: =AD178-AD178*30% -> 7 | AF178: 500 | AG178: =AF178*1.57% -> 7.85 | AH178: =AG178-AG178*30% -> 5.495
A179: ICEA-191 | B179: man | C179: LAINE | D179: Xavier | F179: 2003-09-06 | G179: TOULOUSE | H179: person | K179: fr | L179: 29 RUE DELMAS | M179: 31400 | N179: TOULOUSE | O179: FR | P179: FR | Q179: FR | R179: 06 03 53 41 88 | T179: laine.pierre@9online.fr | X179: =CONCATENATE(C179," ",D179) -> LAINE Xavier | Z179: 250 | AA179: =Z179*2% -> 5 | AB179: =AA179-AA179*30% -> 3.5 | AC179: 250 | AD179: =AC179*2% -> 5 | AE179: =AD179-AD179*30% -> 3.5 | AF179: 250 | AG179: =AF179*1.57% -> 3.925 | AH179: =AG179-AG179*30% -> 2.7475
A180: ICEA-403 | B180: man | C180: Langry | D180: Jean | F180: 1983-06-02 | G180: Nantes | H180: person | K180: fr | L180: Lieu-dit FACHET | M180: 31190 | N180: MIREMONT | O180: FR | P180: FR | Q180: FR | R180: 33769255771 | T180: jean.langry@posteo.net | U180: Claire Carbonnel ou Jean Langry | V180: FR7617807000779551973757871 | W180: CCBPFRPPTLS | X180: =CONCATENATE(C180," ",D180) -> Langry Jean | AA180: =Z180*2% -> 0 | AB180: =AA180-AA180*30% -> 0 | AD180: =AC180*2% -> 0 | AE180: =AD180-AD180*30% -> 0 | AF180: 100 | AG180: =AF180*1.57% -> 1.57 | AH180: =AG180-AG180*30% -> 1.099 | AI180: =AB180+AE180+AH180 -> 1.099 | AJ180: =CONCATENATE("2019/",'cooperators-41'!AB180,"Euros-2020/",'cooperators-41'!AE180,"Euros-2022/",'cooperators-41'!AH180,"Euros") -> 2019/0Euros-2020/0Euros-2022/1,099Euros
A181: ICEA-96 | B181: woman | C181: Laurens | D181: Anne | F181: 1985-03-23 | G181: Puento Alto (Chili) | H181: person | K181: fr | L181: 23 rue Aymard-Bat E, Apt 61,Res S Paru | M181: 98800 | N181: Noumea- N calédomie | O181: FR | P181: FR | Q181: FR | R181: 00 687 93 68 55 | T181: anne.laurens31@gmail.com | X181: =CONCATENATE(C181," ",D181) -> Laurens Anne | Z181: 50 | AA181: =Z181*2% -> 1 | AB181: =AA181-AA181*30% -> 0.7 | AC181: 50 | AD181: =AC181*2% -> 1 | AE181: =AD181-AD181*30% -> 0.7 | AF181: 50 | AG181: =AF181*1.57% -> 0.785 | AH181: =AG181-AG181*30% -> 0.5495
A182: ICEA-04 | B182: man | C182: Laurens | D182: Christian | F182: 1950-08-06 | G182: Albi (81) | H182: person | K182: fr | L182: 6, chemin de l'olivier | M182: 31670 | N182: Labège | O182: FR | P182: FR | Q182: FR | R182: 06 06 56 31 30 | T182: christianlaurens81@gmail.com | X182: =CONCATENATE(C182," ",D182) -> Laurens Christian | Z182: 50 | AA182: =Z182*2% -> 1 | AB182: =AA182-AA182*30% -> 0.7 | AC182: 50 | AD182: =AC182*2% -> 1 | AE182: =AD182-AD182*30% -> 0.7 | AF182: 50 | AG182: =AF182*1.57% -> 0.785 | AH182: =AG182-AG182*30% -> 0.5495
A183: ICEA-330 | B183: man | C183: LE BART | D183: Jacques | F183: 1960-12-02 | G183: LAVAL | H183: person | K183: fr | L183: 6 RUE LOUIS MARC DEMOUILLES | M183: 31400 | N183: TOULOUSE | O183: FR | P183: FR | Q183: FR | R183: 33614672854 | T183: jlebart31@gmail.com | U183: Le Bart | V183: FR7610278022000001894154062 | W183: cmcifr2a | X183: =CONCATENATE(C183," ",D183) -> LE BART Jacques | AA183: =Z183*2% -> 0 | AB183: =AA183-AA183*30% -> 0 | AC183: 200 | AD183: =AC183*2% -> 4 | AE183: =AD183-AD183*30% -> 2.8 | AF183: 200 | AG183: =AF183*1.57% -> 3.14 | AH183: =AG183-AG183*30% -> 2.198 | AI183: =AB183+AE183+AH183 -> 4.998 | AJ183: =CONCATENATE("2019/",'cooperators-41'!AB183,"Euros-2020/",'cooperators-41'!AE183,"Euros-2022/",'cooperators-41'!AH183,"Euros") -> 2019/0Euros-2020/2,8Euros-2022/2,198Euros
A184: ICEA-32 | B184: woman | C184: LECOCQ | D184: Anne | E184: Bouchet | F184: 1959-08-31 | G184: Douai (59) | H184: person | K184: fr | L184: 15 allée des aubépines | M184: 31320 | N184: Castanet Tolosan | O184: FR | P184: FR | Q184: FR | R184: +336 27 66 97 62 | T184: annebouchet5@yahoo.fr | X184: =CONCATENATE(C184," ",D184) -> LECOCQ Anne | Z184: 200 | AA184: =Z184*2% -> 4 | AB184: =AA184-AA184*30% -> 2.8 | AC184: 200 | AD184: =AC184*2% -> 4 | AE184: =AD184-AD184*30% -> 2.8 | AF184: 200 | AG184: =AF184*1.57% -> 3.14 | AH184: =AG184-AG184*30% -> 2.198
A185: ICEA-350 | B185: man | C185: Leduque | D185: Dominique | F185: 1966-01-29 | G185: Alloue | H185: person | K185: fr | L185: 25 chemin du coustou de Picard | M185: 31450 | N185: Montbrun-Lauragais | O185: FR | P185: FR | Q185: FR | R185: 07 69 34 07 44 | T185: Leduque.dominique@neuf.fr | X185: =CONCATENATE(C185," ",D185) -> Leduque Dominique | AA185: =Z185*2% -> 0 | AB185: =AA185-AA185*30% -> 0 | AC185: 100 | AD185: =AC185*2% -> 2 | AE185: =AD185-AD185*30% -> 1.4 | AF185: 100 | AG185: =AF185*1.57% -> 1.57 | AH185: =AG185-AG185*30% -> 1.099
A186: ICEA-348 | B186: man | C186: Leduque | D186: Mathis | F186: 1999-02-01 | G186: Lons le Saunier | H186: person | K186: fr | L186: 25 chemin du coustou de Picard | M186: 31450 | N186: Montbrun-Lauragais | O186: FR | P186: FR | Q186: FR | R186: 06 51 79 74 96 | T186: mathis.leduque@gmail.com | X186: =CONCATENATE(C186," ",D186) -> Leduque Mathis | AA186: =Z186*2% -> 0 | AB186: =AA186-AA186*30% -> 0 | AC186: 50 | AD186: =AC186*2% -> 1 | AE186: =AD186-AD186*30% -> 0.7 | AF186: 50 | AG186: =AF186*1.57% -> 0.785 | AH186: =AG186-AG186*30% -> 0.5495
A187: ICEA-60 | B187: man | C187: LEGAY | D187: Frédéric | E187: Fréderic | F187: 2017-10-10 | H187: company | I187: JMP Chauffage | J187: FR11448438986 | K187: fr | L187: ZA de Bogues - Av de Toulouse | M187: 31750 | N187: Escalquens | O187: FR | P187: FR | Q187: FR | R187: 05 61 83 25 05 | T187: contact@jmpchauffage.fr | X187: =CONCATENATE(C187," ",D187) -> LEGAY Frédéric | Z187: 200 | AA187: =Z187*2% -> 4 | AB187: =AA187-AA187*30% -> 2.8 | AC187: 200 | AD187: =AC187*2% -> 4 | AE187: =AD187-AD187*30% -> 2.8 | AF187: 200 | AG187: =AF187*1.57% -> 3.14 | AH187: =AG187-AG187*30% -> 2.198
A188: ICEA-338 | B188: woman | C188: LEPINE | D188: Marjorie | E188: . | F188: 1990-10-05 | G188: Béziers | H188: person | K188: fr | L188: 17 rue bel horizon | M188: 31450 | N188: Odars | O188: FR | P188: FR | Q188: FR | R188: +3368 27 80 54 | T188: marjorielepine@pm.me | U188: LEPINE | V188: FR7621570000010807942001333 | W188: STFEFR21XXX | X188: =CONCATENATE(C188," ",D188) -> LEPINE Marjorie | AA188: =Z188*2% -> 0 | AB188: =AA188-AA188*30% -> 0 | AC188: 50 | AD188: =AC188*2% -> 1 | AE188: =AD188-AD188*30% -> 0.7 | AF188: 50 | AG188: =AF188*1.57% -> 0.785 | AH188: =AG188-AG188*30% -> 0.5495 | AI188: =AB188+AE188+AH188 -> 1.2495 | AJ188: =CONCATENATE("2019/",'cooperators-41'!AB188,"Euros-2020/",'cooperators-41'!AE188,"Euros-2022/",'cooperators-41'!AH188,"Euros") -> 2019/0Euros-2020/0,7Euros-2022/0,5495Euros
A189: ICEA-364 | B189: man | C189: Leroyer | D189: Philippe | E189: . | F189: 1953-06-01 | G189: Paris | H189: person | K189: fr | L189: 6 chemin de Safrana | M189: 31450 | N189: Montgiscard | O189: FR | P189: FR | Q189: FR | R189: 06 12 55 41 52 | T189: ph.leroyer@gmail.com | X189: =CONCATENATE(C189," ",D189) -> Leroyer Philippe | AA189: =Z189*2% -> 0 | AB189: =AA189-AA189*30% -> 0 | AC189: 50 | AD189: =AC189*2% -> 1 | AE189: =AD189-AD189*30% -> 0.7 | AF189: 50 | AG189: =AF189*1.57% -> 0.785 | AH189: =AG189-AG189*30% -> 0.5495
A190: ICEA-170 | B190: woman | C190: Lesage | D190: ANNIE | E190: Gambier | F190: 1962-07-19 | G190: St Amand-Montrond | H190: person | K190: fr | L190: 11 chemin de picotalen | M190: 11400 | N190: fendeille | O190: FR | P190: FR | Q190: FR | R190: 06 95 91 25 92 | T190: yah.gambier@gmail.com | X190: =CONCATENATE(C190," ",D190) -> Lesage ANNIE | Z190: 1000 | AA190: =Z190*2% -> 20 | AB190: =AA190-AA190*30% -> 14 | AC190: 1000 | AD190: =AC190*2% -> 20 | AE190: =AD190-AD190*30% -> 14 | AF190: 1000 | AG190: =AF190*1.57% -> 15.7 | AH190: =AG190-AG190*30% -> 10.99
A191: ICEA-206 | B191: woman | C191: LESECQ | D191: Claire | E191: Claire | F191: 1969-09-20 | G191: Ris Orangis | H191: person | K191: fr | L191: 26 rue du Petit Prince | M191: 31320 | N191: CASTANET TOLOSAN | O191: FR | P191: FR | Q191: FR | R191: +3381 55 42 89 | T191: claire@haydont.net | X191: =CONCATENATE(C191," ",D191) -> LESECQ Claire | Z191: 500 | AA191: =Z191*2% -> 10 | AB191: =AA191-AA191*30% -> 7 | AC191: 500 | AD191: =AC191*2% -> 10 | AE191: =AD191-AD191*30% -> 7 | AF191: 500 | AG191: =AF191*1.57% -> 7.85 | AH191: =AG191-AG191*30% -> 5.495
A192: ICEA-295 | B192: man | C192: Lestarquit | D192: Laurent | E192: . | F192: 1971-01-09 | G192: Strasbourg | H192: person | K192: fr | L192: 2 Hameau de Mange Pommes | M192: 31520 | N192: Ramonville | O192: FR | P192: FR | Q192: FR | R192: +336 76 46 10 05 | S192: 33567062303 | T192: laurent.lestarquit@m4x.org | X192: =CONCATENATE(C192," ",D192) -> Lestarquit Laurent | AA192: =Z192*2% -> 0 | AB192: =AA192-AA192*30% -> 0 | AC192: 500 | AD192: =AC192*2% -> 10 | AE192: =AD192-AD192*30% -> 7 | AF192: 500 | AG192: =AF192*1.57% -> 7.85 | AH192: =AG192-AG192*30% -> 5.495
A193: ICEA-299 | B193: woman | C193: Lestarquit | D193: Marion | F193: 2013-08-02 | G193: Toulouse | H193: gardian | K193: fr | L193: 2 Hameau de Mange Pommes | M193: 31520 | N193: Ramonville | O193: FR | P193: FR | Q193: FR | T193: laurent.lestarquit@m4x.org | X193: =CONCATENATE(C193," ",D193) -> Lestarquit Marion | AA193: =Z193*2% -> 0 | AB193: =AA193-AA193*30% -> 0 | AC193: 500 | AD193: =AC193*2% -> 10 | AE193: =AD193-AD193*30% -> 7 | AF193: 500 | AG193: =AF193*1.57% -> 7.85 | AH193: =AG193-AG193*30% -> 5.495
A194: ICEA-297 | B194: woman | C194: Lestarquit | D194: Raphaëlle | E194: . | F194: 2011-05-01 | G194: Lyon | H194: gardian | K194: fr | L194: 2 Hameau de Mange Pommes | M194: 31520 | N194: Ramonville | O194: FR | P194: FR | Q194: FR | R194: 06 76 46 10 05 | T194: ppff05@yahoo.fr | X194: =CONCATENATE(C194," ",D194) -> Lestarquit Raphaëlle | AA194: =Z194*2% -> 0 | AB194: =AA194-AA194*30% -> 0 | AC194: 500 | AD194: =AC194*2% -> 10 | AE194: =AD194-AD194*30% -> 7 | AF194: 500 | AG194: =AF194*1.57% -> 7.85 | AH194: =AG194-AG194*30% -> 5.495
A195: ICEA-204 | B195: woman | C195: LHERMITTE | D195: ANNE-CLAUDE | E195: Dal Zovo | F195: 1957-07-22 | G195: NANTES | H195: person | K195: fr | L195: 30 Chemin Fontaine St Sernin | M195: 31670 | N195: Labege | O195: FR | P195: FR | Q195: FR | R195: 06 88 01 55 27 | T195: acodz@orange.fr | X195: =CONCATENATE(C195," ",D195) -> LHERMITTE ANNE-CLAUDE | Z195: 50 | AA195: =Z195*2% -> 1 | AB195: =AA195-AA195*30% -> 0.7 | AC195: 50 | AD195: =AC195*2% -> 1 | AE195: =AD195-AD195*30% -> 0.7 | AF195: 50 | AG195: =AF195*1.57% -> 0.785 | AH195: =AG195-AG195*30% -> 0.5495
A196: ICEA-66 | B196: woman | C196: Lomont | D196: Elsa | F196: 1985-06-22 | G196: Toulouse (31) | H196: person | K196: fr | L196: 17 rue Gramat | M196: 31000 | N196: Toulouse | O196: FR | P196: FR | Q196: FR | R196: 06 80 70 70 91 | T196: elsa.lomont@gmail.com | X196: =CONCATENATE(C196," ",D196) -> Lomont Elsa | Z196: 100 | AA196: =Z196*2% -> 2 | AB196: =AA196-AA196*30% -> 1.4 | AC196: 100 | AD196: =AC196*2% -> 2 | AE196: =AD196-AD196*30% -> 1.4 | AF196: 100 | AG196: =AF196*1.57% -> 1.57 | AH196: =AG196-AG196*30% -> 1.099
A197: ICEA-291 | B197: woman | C197: LOPEZ | D197: Aurore | E197: . | F197: 1988-03-06 | G197: Montauban | H197: person | K197: fr | L197: 8 impasse de Lascaux - Apt 71 | M197: 31500 | N197: Toulouse | O197: FR | P197: FR | Q197: FR | R197: 06 78 75 59 66 | T197: aurorelopez@ymail.com | X197: =CONCATENATE(C197," ",D197) -> LOPEZ Aurore | AA197: =Z197*2% -> 0 | AB197: =AA197-AA197*30% -> 0 | AC197: 50 | AD197: =AC197*2% -> 1 | AE197: =AD197-AD197*30% -> 0.7 | AF197: 50 | AG197: =AF197*1.57% -> 0.785 | AH197: =AG197-AG197*30% -> 0.5495
A198: ICEA-373 | B198: woman | C198: Lorillloux | D198: Sylvie | E198: Lorilloux | F198: 1959-08-03 | G198: Roanne | H198: person | K198: fr | L198: 1 Ter Rue Georges Vallerey Appartement 306 | M198: 31320 | N198: CasranetTolosan | O198: FR | P198: FR | Q198: FR | R198: 06 71 96 20 22 | T198: sylvielorilloux@orange.fr | X198: =CONCATENATE(C198," ",D198) -> Lorillloux Sylvie | AA198: =Z198*2% -> 0 | AB198: =AA198-AA198*30% -> 0 | AD198: =AC198*2% -> 0 | AE198: =AD198-AD198*30% -> 0 | AF198: 100 | AG198: =AF198*1.57% -> 1.57 | AH198: =AG198-AG198*30% -> 1.099
A199: ICEA-235 | B199: woman | C199: Maffre | D199: Myriam | E199: Fieu-Maffre | F199: 1967-06-20 | H199: person | K199: fr | L199: 59 Ch Al Cers | M199: 31450 | N199: Montgiscard | O199: FR | P199: FR | Q199: FR | R199: 06 70 81 01 39 | T199: myriam.fm@orange.fr | X199: =CONCATENATE(C199," ",D199) -> Maffre Myriam | Z199: 50 | AA199: =Z199*2% -> 1 | AB199: =AA199-AA199*30% -> 0.7 | AC199: 50 | AD199: =AC199*2% -> 1 | AE199: =AD199-AD199*30% -> 0.7 | AF199: 50 | AG199: =AF199*1.57% -> 0.785 | AH199: =AG199-AG199*30% -> 0.5495
A200: ICEA-220 | B200: woman | C200: Mallet | D200: Véronique | E200: Pourcher | F200: 1968-06-25 | G200: Saintes | H200: person | K200: fr | L200: 27 rue des Ménéstrels | M200: 31670 | N200: Labège | O200: FR | P200: FR | Q200: FR | R200: 06 75 80 26 14 | T200: vero.mallet@hotmail.fr | X200: =CONCATENATE(C200," ",D200) -> Mallet Véronique | Z200: 50 | AA200: =Z200*2% -> 1 | AB200: =AA200-AA200*30% -> 0.7 | AC200: 50 | AD200: =AC200*2% -> 1 | AE200: =AD200-AD200*30% -> 0.7 | AF200: 50 | AG200: =AF200*1.57% -> 0.785 | AH200: =AG200-AG200*30% -> 0.5495
... 231 more rows

Sheet copie -liste sociétaireet donat
A1: Entete | B1: Date virement | C1: Nom | D1: Iban | E1: Bic | F1: Montant | G1: Ref | H1: Libelle
A2: sepawin | B2: 2023-07-28 | C2: Alberola | D2: FR7612280000030424950123701 | E2: SORMFR2NXXX | F2: 12.495 | G2: =CONCATENATE("dividendes"," ",'cooperators-41'!A3) -> dividendes ICEA-292 | H2: 2019/7Euros-2020/7Euros-2022/5,495Euros
A3: sepawin | B3: 2023-07-28 | C3: BALOSSO | D3: FR7642559100000401878365756 | E3: CCOPFRPPXXX | F3: 19.495 | G3: =CONCATENATE("dividendes"," ",'cooperators-41'!A4) -> dividendes ICEA-400 | H3: 2019/8,4Euros-2020/8,4Euros-2022/6,594Euros
A4: sepawin | B4: 2023-07-28 | C4: BASCOUL | D4: FR7614518292670193788774016 | E4: FTNOFRP1XXX | F4: 12.495 | G4: =CONCATENATE("dividendes"," ",'cooperators-41'!A5) -> dividendes ICEA-333 | H4: 2019/7Euros-2020/7Euros-2022/5,495Euros
A5: sepawin | B5: 2023-07-28 | C5: BASCOUL | D5: FR7614518292670782694284041 | E5: FTNOFRP1XXX | F5: 5.495 | G5: =CONCATENATE("dividendes"," ",'cooperators-41'!A6) -> dividendes ICEA-274 | H5: 2019/8,4Euros-2020/8,4Euros-2022/6,594Euros
A6: sepawin | B6: 2023-07-28 | C6: BASCOUL | D6: FR7614518292670224166874049 | E6: FTNOFRP1XXX | F6: 12.495 | G6: =CONCATENATE("dividendes"," ",'cooperators-41'!A7) -> dividendes ICEA-198 | H6: 2019/1,4Euros-2020/2,1Euros-2022/1,6485Euros
A7: sepawin | B7: 2023-07-28 | C7: BENTO | D7: FR7613106005001820821510135 | E7: AGRIFRPP831 | F7: 23.394 | G7: =CONCATENATE("dividendes"," ",'cooperators-41'!A8) -> dividendes ICEA-108 | H7: 2019/7Euros-2020/7Euros-2022/5,495Euros
A8: sepawin | B8: 2023-07-28 | C8: Bernard | D8: FR7610278022920002000730171 | E8: CMCIFR2AXXX | F8: 19.495 | G8: =CONCATENATE("dividendes"," ",'cooperators-41'!A9) -> dividendes ICEA-414 | H8: 2019/1,4Euros-2020/2,8Euros-2022/2,198Euros
A9: sepawin | B9: 2023-07-28 | C9: Blanchot | D9: FR7613106005002000068418519 | E9: AGRIFRPP831 | F9: 1.099 | G9: =CONCATENATE("dividendes"," ",'cooperators-41'!A10) -> dividendes ICEA-129 | H9: 2019/4,2Euros-2020/4,2Euros-2022/3,297Euros
A10: sepawin | B10: 2023-07-28 | C10: Boulanger | D10: FR7613106005001820821510135 | E10: AGRIFRPP831 | F10: 23.394 | G10: =CONCATENATE("dividendes"," ",'cooperators-41'!A11) -> dividendes ICEA-280 | H10: 2019/0,7Euros-2020/1,4Euros-2022/1,099Euros
A11: sepawin | B11: 2023-07-28 | C11: Bouquet | D11: FR7610278022120002064010194 | E11: CMCIFR2A | F11: 2.499 | G11: =CONCATENATE("dividendes"," ",'cooperators-41'!A12) -> dividendes ICEA-210 | H11: 2019/28Euros-2020/28Euros-2022/21,98Euros
A12: sepawin | B12: 2023-07-28 | C12: BRACKENIER | D12: FR4420041010161210368J03712 | E12: PSSTFRPPTOU | F12: 0.5495 | G12: =CONCATENATE("dividendes"," ",'cooperators-41'!A13) -> dividendes ICEA-266 | H12: 2019/7Euros-2020/7Euros-2022/5,495Euros
A13: sepawin | B13: 2023-07-28 | C13: Bruyant | D13: FR7642559100000412743153978 | E13: CCOPFRPPXXX | F13: 12.495 | G13: =CONCATENATE("dividendes"," ",'cooperators-41'!A14) -> dividendes ICEA-144 | H13: 2019/7Euros-2020/7Euros-2022/5,495Euros
A14: sepawin | B14: 2023-07-28 | C14: BUISSON | D14: FR7630003020690005219043729 | E14: SOGEFRPP | F14: 12.495 | G14: =CONCATENATE("dividendes"," ",'cooperators-41'!A15) -> dividendes ICEA-267 | H14: 2019/7Euros-2020/7Euros-2022/5,495Euros
A15: sepawin | B15: 2023-07-28 | C15: Carrère | D15: FR7613106005002001147673111 | E15: AGRIFRPP831 | F15: 5.1485 | G15: =CONCATENATE("dividendes"," ",'cooperators-41'!A16) -> dividendes ICEA-132 | H15: 2019/21Euros-2020/21Euros-2022/16,485Euros
A16: sepawin | B16: 2023-07-28 | C16: CONOR | D16: FR9520041010161465015Z0356 | E16: PSSTFRPPTOU | F16: 12.495 | G16: =CONCATENATE("dividendes"," ",'cooperators-41'!A17) -> dividendes ICEA-185 | H16: 2019/1,4Euros-2020/1,4Euros-2022/1,099Euros
A17: sepawin | B17: 2023-07-28 | C17: Corberand | D17: FR3630002040220000191621H93 | E17: CRLYFRPP | F17: 12.495 | G17: =CONCATENATE("dividendes"," ",'cooperators-41'!A18) -> dividendes ICEA-157 | H17: 2019/7Euros-2020/7Euros-2022/5,495Euros
A18: sepawin | B18: 2023-07-28 | C18: COSTE | D18: FR7630004007450000058344467 | E18: BNPAFRPPXXX | F18: 12.495 | G18: =CONCATENATE("dividendes"," ",'cooperators-41'!A19) -> dividendes ICEA-317 | H18: 2019/14Euros-2020/14Euros-2022/10,99Euros
A19: sepawin | B19: 2023-07-28 | C19: Couderc | D19: FR7613135000800414454850442 | E19: CEPAFRPP313 | F19: 24.99 | G19: =CONCATENATE("dividendes"," ",'cooperators-41'!A20) -> dividendes ICEA-394 | H19: 2019/0,7Euros-2020/0,7Euros-2022/0,5495Euros
A20: sepawin | B20: 2023-07-28 | C20: Culerrier | D20: FR7617807000120531916773640 | E20: CCBPFRPPTLS | F20: 1.099 | G20: =CONCATENATE("dividendes"," ",'cooperators-41'!A21) -> dividendes ICEA-336 | H20: 2019/5,6Euros-2020/7Euros-2022/5,495Euros
A21: sepawin | B21: 2023-07-28 | C21: Delmas | D21: FR7613135000800424199894623 | E21: CEPAFRPP313 | F21: 19.495 | G21: =CONCATENATE("dividendes"," ",'cooperators-41'!A22) -> dividendes ICEA-124 | H21: 2019/1,4Euros-2020/4,2Euros-2022/3,297Euros
A22: sepawin | B22: 2023-07-28 | C22: Depaux | D22: FR7610268025861058240040090 | E22: COURFR2T | F22: 6.398 | G22: =CONCATENATE("dividendes"," ",'cooperators-41'!A23) -> dividendes ICEA-301 | H22: 2019/14Euros-2020/28Euros-2022/21,98Euros
A23: sepawin | B23: 2023-07-28 | C23: Enjalbert | D23: FR4620041010160640974C03737 | E23: PSSTFRPPTOU | F23: 11.697 | G23: =CONCATENATE("dividendes"," ",'cooperators-41'!A24) -> dividendes ICEA-42 | H23: 2019/15,4Euros-2020/15,4Euros-2022/16,485Euros
A24: sepawin | B24: 2023-07-28 | C24: Fouchard | D24: FR7630004018720000059982770 | E24: BNPAFRPPXXX | F24: 3.199 | G24: =CONCATENATE("dividendes"," ",'cooperators-41'!A25) -> dividendes ICEA-407 | H24: 2019/7Euros-2020/7Euros-2022/5,495Euros
A25: sepawin | B25: 2023-07-28 | C25: GAMBIER | D25: FR7642559100000401731461487 | E25: CCOPFRPPXXX | F25: 77.98 | G25: =CONCATENATE("dividendes"," ",'cooperators-41'!A26) -> dividendes ICEA-200 | H25: 2019/7Euros-2020/7Euros-2022/5,495Euros
A26: sepawin | B26: 2023-07-28 | C26: Gardette | D26: NO9381601656833 | E26: DABANO22 | F26: 2.198 | G26: =CONCATENATE("dividendes"," ",'cooperators-41'!A27) -> dividendes ICEA-344 | H26: 2019/7Euros-2020/7Euros-2022/5,495Euros
A27: sepawin | B27: 2023-07-28 | C27: Gardette | D27: FR7610907000011201969390978 | E27: CCBPFRPPBDX | F27: 19.495 | G27: =CONCATENATE("dividendes"," ",'cooperators-41'!A28) -> dividendes ICEA-393 | H27: 2019/1,4Euros-2020/1,4Euros-2022/1,099Euros
A28: sepawin | B28: 2023-07-28 | C28: Gardette | D28: NO9381601656833 | E28: DABANO22 | F28: 19.495 | G28: =CONCATENATE("dividendes"," ",'cooperators-41'!A29) -> dividendes ICEA-61 | H28: 2019/7Euros-2020/7Euros-2022/5,495Euros
A29: sepawin | B29: 2023-07-28 | C29: Gaucher | D29: FR7613135000800424199894623 | E29: CEPAFRPP313 | F29: 19.495 | G29: =CONCATENATE("dividendes"," ",'cooperators-41'!A30) -> dividendes ICEA-405 | H29: 2019/1,4Euros-2020/1,4Euros-2022/2,7475Euros
A30: sepawin | B30: 2023-07-28 | C30: Gimenez | D30: FR1020041010160292808L03755 | E30: PSSTFRPPTOU | F30: 58.485 | G30: =CONCATENATE("dividendes"," ",'cooperators-41'!A31) -> dividendes ICEA-125 | H30: 2019/7Euros-2020/7Euros-2022/7,693Euros
A31: sepawin | B31: 2023-07-28 | C31: Gomart-Massip | D31: FR7610268025861058240040090 | E31: COURFR2T | F31: 3.899 | G31: =CONCATENATE("dividendes"," ",'cooperators-41'!A32) -> dividendes ICEA-193 | H31: 2019/1,4Euros-2020/1,4Euros-2022/2,198Euros
A32: sepawin | B32: 2023-07-28 | C32: Haydont | D32: FR7630004021800000021093566 | E32: BNPAFRPPXXX | F32: 19.495 | G32: =CONCATENATE("dividendes"," ",'cooperators-41'!A33) -> dividendes ICEA-321 | H32: 2019/1,4Euros-2020/1,4Euros-2022/2,198Euros
A33: sepawin | B33: 2023-07-28 | C33: Hernandez | D33: FR7613135000800424982482669 | E33: CEPAFRPP313 | F33: 2.499 | G33: =CONCATENATE("dividendes"," ",'cooperators-41'!A34) -> dividendes ICEA-178 | H33: 2019/7Euros-2020/7Euros-2022/5,495Euros
A34: sepawin | B34: 2023-07-28 | C34: Hévin | D34: FR7613106005001192948610120 | E34: AGRIFRPP831 | F34: 38.99 | G34: =CONCATENATE("dividendes"," ",'cooperators-41'!A35) -> dividendes ICEA-177 | H34: 2019/7Euros-2020/7Euros-2022/5,495Euros
A35: sepawin | B35: 2023-07-28 | C35: Hilaire | D35: FR7630056003660366009078905 | E35: CCFRFRPP | F35: 1.9495 | G35: =CONCATENATE("dividendes"," ",'cooperators-41'!A36) -> dividendes ICEA-51 | H35: 2019/7Euros-2020/14Euros-2022/10,99Euros
A36: sepawin | B36: 2023-07-28 | C36: Knödlseder | D36: FR7617807000130131936093523 | E36: CCBPFRPPTLS | F36: 24.99 | G36: =CONCATENATE("dividendes"," ",'cooperators-41'!A37) -> dividendes ICEA-140 | H36: 2019/7Euros-2020/7Euros-2022/5,495Euros
A37: sepawin | B37: 2023-07-28 | C37: Knödlseder | D37: FR7613135000800442773454623 | E37: CEPAFRPP313 | F37: 12.495 | G37: =CONCATENATE("dividendes"," ",'cooperators-41'!A38) -> dividendes ICEA-402 | H37: 2019/7Euros-2020/7Euros-2022/5,495Euros
A38: sepawin | B38: 2023-07-28 | C38: Knödlseder | D38: FR7617807000130131936093523 | E38: CCBPFRPPTLS | F38: 12.495 | G38: =CONCATENATE("dividendes"," ",'cooperators-41'!A39) -> dividendes ICEA-369 | H38: 2019/2,8Euros-2020/7Euros-2022/5,495Euros
A39: sepawin | B39: 2023-07-28 | C39: Lahaye | D39: FR7613106005001803334010150 | E39: AGRIFRPP831 | F39: 18.095 | G39: =CONCATENATE("dividendes"," ",'cooperators-41'!A40) -> dividendes ICEA-420 | H39: 2019/0,7Euros-2020/0,7Euros-2022/0,5495Euros
A40: sepawin | B40: 2023-07-28 | C40: Langry | D40: FR7617807000779551973757871 | E40: CCBPFRPPTLS | F40: 1.099 | G40: =CONCATENATE("dividendes"," ",'cooperators-41'!A41) -> dividendes ICEA-365
A41: sepawin | B41: 2023-07-28 | C41: LE BART | D41: FR7610278022000001894154062 | E41: cmcifr2a | F41: 4.998 | G41: =CONCATENATE("dividendes"," ",'cooperators-41'!A42) -> dividendes ICEA-282
A42: sepawin | B42: 2023-07-28 | C42: LEPINE | D42: FR7621570000010807942001333 | E42: STFEFR21XXX | F42: 1.2495 | G42: =CONCATENATE("dividendes"," ",'cooperators-41'!A43) -> dividendes ICEA-345
A43: sepawin | B43: 2023-07-28 | C43: MARY | D43: FR7640618803210004023777005 | E43: BOUSFRPPXXX | F43: 8.099 | G43: =CONCATENATE("dividendes"," ",'cooperators-41'!A44) -> dividendes ICEA-278
A44: sepawin | B44: 2023-07-28 | C44: Mollereau | D44: FR7617807000336541978439271 | E44: CCBPFRPPTLS | F44: 8.897 | G44: =CONCATENATE("dividendes"," ",'cooperators-41'!A45) -> dividendes ICEA-152
A45: sepawin | B45: 2023-07-28 | C45: Navarra | D45: FR7613106005001230846610127 | E45: AGRIFRPP831 | F45: 12.495 | G45: =CONCATENATE("dividendes"," ",'cooperators-41'!A46) -> dividendes ICEA-153
A46: sepawin | B46: 2023-07-28 | C46: NEYROLLES | D46: FR7630004033750000133682553 | E46: BNPAFRPPXXX | F46: 1.099 | G46: =CONCATENATE("dividendes"," ",'cooperators-41'!A47) -> dividendes ICEA-33
A47: sepawin | B47: 2023-07-28 | C47: Noeureuil | D47: FR7612280000030490965164702 | E47: SORMFR2NXXX | F47: 63.98 | G47: =CONCATENATE("dividendes"," ",'cooperators-41'!A48) -> dividendes ICEA-167
A48: sepawin | B48: 2023-07-28 | C48: OBERTI | D48: FR753000100833D310000000075 | E48: BDFEFRPPCCT | F48: 47.285 | G48: =CONCATENATE("dividendes"," ",'cooperators-41'!A49) -> dividendes ICEA-107
A49: sepawin | B49: 2023-07-28 | C49: PLAGNARD | D49: FR7613106005001082016010173 | E49: AGRIFRPP831 | F49: 19.495 | G49: =CONCATENATE("dividendes"," ",'cooperators-41'!A50) -> dividendes ICEA-114
A50: sepawin | B50: 2023-07-28 | C50: Poutier | D50: FR7614690000015400012601620 | E50: CMCIFRP1MON | F50: 16.485 | G50: =CONCATENATE("dividendes"," ",'cooperators-41'!A51) -> dividendes ICEA-173
A51: sepawin | B51: 2023-07-28 | C51: RAAD | D51: LT803250078741053182 | E51: REVOLT21 | F51: 19.495 | G51: =CONCATENATE("dividendes"," ",'cooperators-41'!A52) -> dividendes ICEA-163
A52: sepawin | B52: 2023-07-28 | C52: RAYMOND-CLERGUE | D52: FR761315000800403920721155 | E52: CEPAFRPP313 | F52: 12.495 | G52: =CONCATENATE("dividendes"," ",'cooperators-41'!A53) -> dividendes ICEA-254
A53: sepawin | B53: 2023-07-28 | C53: REQUILLART | D53: FR7613135000800404268051868 | E53: CEPAFRPP313 | F53: 17.99 | G53: =CONCATENATE("dividendes"," ",'cooperators-41'!A54) -> dividendes ICEA-341
A54: sepawin | B54: 2023-07-28 | C54: Rivière | D54: FR2320041010160157287F03712 | E54: PSSTFRPPTOU | F54: 19.495 | G54: =CONCATENATE("dividendes"," ",'cooperators-41'!A55) -> dividendes ICEA-242
A55: sepawin | B55: 2023-07-28 | C55: Roustan | D55: FR7617807000121331940568476 | E55: CCBPFRPPTLS | F55: 3.899 | G55: =CONCATENATE("dividendes"," ",'cooperators-41'!A56) -> dividendes ICEA-43
A56: sepawin | B56: 2023-07-28 | C56: Rudinger | D56: FR7617807000010551949911526 | E56: CCBPFRPPTLS | F56: 19.495 | G56: =CONCATENATE("dividendes"," ",'cooperators-41'!A57) -> dividendes ICEA-78
A57: sepawin | B57: 2023-07-28 | C57: Salin | D57: FR7617807000333531911315858 | E57: CCBPFRPPTLS | F57: 5.5475 | G57: =CONCATENATE("dividendes"," ",'cooperators-41'!A58) -> dividendes ICEA-243
A58: sepawin | B58: 2023-07-28 | C58: Salin | D58: FR7617807000333531911315858 | E58: CCBPFRPPTLS | F58: 21.693 | G58: =CONCATENATE("dividendes"," ",'cooperators-41'!A59) -> dividendes ICEA-174
A59: sepawin | B59: 2023-07-28 | C59: Salin | D59: FR7617807000333531911315858 | E59: CCBPFRPPTLS | F59: 4.998 | G59: =CONCATENATE("dividendes"," ",'cooperators-41'!A60) -> dividendes ICEA-12
A60: sepawin | B60: 2023-07-28 | C60: Salin | D60: FR7617807000333531911315858 | E60: CCBPFRPPTLS | F60: 4.998 | G60: =CONCATENATE("dividendes"," ",'cooperators-41'!A61) -> dividendes ICEA-314
A61: sepawin | B61: 2023-07-28 | C61: Serard | D61: FR1220041010140237113K03558 | E61: PSSTFRPPROU | F61: 12.495 | G61: =CONCATENATE("dividendes"," ",'cooperators-41'!A62) -> dividendes ICEA-312
A62: sepawin | B62: 2023-07-28 | C62: SFEIR | D62: FR7613106005001082016010173 | E62: AGRIFRPP831 | F62: 19.495 | G62: =CONCATENATE("dividendes"," ",'cooperators-41'!A63) -> dividendes ICEA-315
A63: sepawin | B63: 2023-07-28 | C63: SFEIR | D63: FR7613106005001082016010173 | E63: AGRIFRPP831 | F63: 19.495 | G63: =CONCATENATE("dividendes"," ",'cooperators-41'!A64) -> dividendes ICEA-316
A64: sepawin | B64: 2023-07-28 | C64: Stevenet | D64: FR7610278022180002016190171 | E64: CMCIFR2A | F64: 31.99 | G64: =CONCATENATE("dividendes"," ",'cooperators-41'!A65) -> dividendes ICEA-238
A65: sepawin | B65: 2023-07-28 | C65: TEYSSIER | D65: FR18200410101607355340Z03796 | E65: PSSTFRPPTOU | F65: 12.495 | G65: =CONCATENATE("dividendes"," ",'cooperators-41'!A66) -> dividendes ICEA-237
A66: sepawin | B66: 2023-07-28 | C66: Thil | D66: FR7613106005001566076410167 | E66: AGRIFRPP831 | F66: 19.495 | G66: =CONCATENATE("dividendes"," ",'cooperators-41'!A67) -> dividendes ICEA-359
A67: sepawin | B67: 2023-07-28 | C67: Thil-Pulgar | D67: FR7613106005001566076410167 | E67: AGRIFRPP831 | F67: 19.495 | G67: =CONCATENATE("dividendes"," ",'cooperators-41'!A68) -> dividendes ICEA-370
A68: sepawin | B68: 2023-07-28 | C68: TROLONGE | D68: FR7610278022180002056070169 | E68: CMCIFR2A | F68: 6.2475 | G68: =CONCATENATE("dividendes"," ",'cooperators-41'!A69) -> dividendes ICEA-358
A69: sepawin | B69: 2023-07-28 | C69: VAUCHAUSSADE de CHAUMONT | D69: FR7613106005001272027210123 | E69: AGRIFRPP831 | F69: 15.295 | G69: =CONCATENATE("dividendes"," ",'cooperators-41'!A70) -> dividendes ICEA-63
A70: sepawin | B70: 2023-07-28 | C70: Verhoog | D70: FR18706000009750159911992 | E70: AGRIFRPP887 | F70: 16.485 | G70: =CONCATENATE("dividendes"," ",'cooperators-41'!A71) -> dividendes ICEA-357
A71: sepawin | B71: 2023-07-28 | C71: VERHOOG | D71: FR0620041010051809675H02625 | F71: 5.495 | G71: =CONCATENATE("dividendes"," ",'cooperators-41'!A72) -> dividendes ICEA-253
A72: sepawin | B72: 2023-07-28 | C72: VERHOOG | D72: FR7618706000007783740013068 | E72: AGRIFRPP887 | F72: 16.485 | G72: =CONCATENATE("dividendes"," ",'cooperators-41'!A73) -> dividendes ICEA-335
A73: sepawin | B73: 2023-07-28 | C73: Wautelet | D73: FR7614518292670287305624005 | E73: FTNOFRP1XXX | F73: 12.495 | G73: =CONCATENATE("dividendes"," ",'cooperators-41'!A74) -> dividendes ICEA-275
A74: sepawin | B74: 2023-07-28 | C74: Wautelet | D74: FR7610278022120002064010194 | E74: CMCIFR2A | F74: 2.499 | G74: =CONCATENATE("dividendes"," ",'cooperators-41'!A75) -> dividendes ICEA-355
A75: sepawin | B75: 2023-07-28 | C75: Wautelet | D75: FR7614518292670287306164004 | E75: FTNOFRP1XXX | F75: 12.495 | G75: =CONCATENATE("dividendes"," ",'cooperators-41'!A76) -> dividendes ICEA-168
A76: sepawin | B76: 2023-07-28 | C76: Weisslinger | D76: FR5420041010161634980U03736 | E76: PSSTFRPPTOU | F76: 1.9495 | G76: =CONCATENATE("dividendes"," ",'cooperators-41'!A77) -> dividendes ICEA-367
A77: sepawin | B77: 2023-07-28 | C77: Zaccaron | D77: FR7613106005001192948610120 | E77: AGRIFRPP831 | F77: 12.495 | G77: =CONCATENATE("dividendes"," ",'cooperators-41'!A78) -> dividendes ICEA-257

Sheet Donnateur
A1: Donateurs
A2: Abrantes Philippe
A3: Adam Pascal
A4: Arevalo Henri
A5: Azzola Corinne
A6: Bages Annie
A7: Baldelli Paul
A8: Barde Joanne
A9: Barrere Anne-Sophie
A10: BENOIT Marilys
A11: Boscher Gabriel
A12: Bourrelle Monique
A13: Bouyssou Carole
A14: Bras Jean
A15: Bratina Maja
A16: Calba Daniel
A17: Casagrande Josephine
A18: Conjard Vincent
A19: Corberand Emma
A20: Debrusse Olivier
A21: Delheure Jeanne
A22: Desnos Sylvie
A23: Duquesnoy Bernard
A24: Emery Françoise
A25: Eynaudi Christine
A26: Fine Jeanne
A27: Fontan Guy
A28: Garcia Thérese
A29: Georget Eric
A30: Gibert Audrey
A31: Gilabert Marie-Claude
A32: Giraud Paule
A33: Hilaire Philippe
A34: Houlbert Christian
A35: Irvoas Anaëlle
A36: Irvoas Johann
A37: Irvoas Rozenn
A38: Isnard Fabien
A39: ISNARD Hélène
A40: Isnard-Richer Marine
A41: Isnard-Richer Maxence
A42: Isnard-Richer Nathalie
A43: Isnard-Richer Remi
A44: Janin Dominique
A45: Jeanpes Michelle
A46: Jover Sébastien
A47: Laborde Bertrand
A48: Laforge Aurelie
A49: lopes manuel
A50: MAITRE Marie Odile
A51: Miglos Alain
A52: Mignonat Jean-Louis
A53: Milonet Fréderique
A54: Moreau Sandrine
A55: Oberti Jacques
A56: Padiou Gérard
A57: Padiou Pierre
A58: Pascal Dominique
A59: Passade Philippe
A60: Pintard Martine
A61: Pourcher Marc
A62: Regnouf de Vains Geneviève
A63: Requillart Christine
A64: Robert Frédéric
A65: Robinet Nathalie
A66: Rosso Josiane
A67: SAINT-MACAIRE Suzy
A68: SAVES la maire Marie-José
A69: Schmitz Christiane
A70: Segaud Danielle
A71: Serradell Jacques
A72: SERVEL EDWIGE
A73: Thil Anne-Marie
A74: Trébosc David
A75: Trébosc Florian
A76: Trébosc Marion
A77: Viez Claire
